{"text_format":"1","workbook":"xlsx","n_sheets":41,"sheets":["0_Start","0.1_Introduction","0.1_Einführung","1_Erste Einschätzung","Hilfe","1_1ère estimation simplifiée","Explication","Gesundheit und Sicherheit","1.1_Information rapide","1.1_Schnelle Information","2.1_Personen","2.2_Finanzen","2.1_Personnes","2.2_Finances","2.3_Märkte","2.3_Marchés","2.4_Management","2.4_Gestion","2.5_Betriebsumgebung","2.5_Environnement commercial","2.6_Produktion","2.6_Production","3_Resultat","3.1_Grafiken","Öffentlichkeit","Umwelt","Strategie","Märkte","Geldmanagement","Sicherheit","Persönliches Wohlbefinden","3_Évaluation","3.1_Graphiques","Marchés","Environnement","Public","Stratégie","Investissements","Bien-être personnel","Santé","Daten"],"not_rendered":{"charts":39,"images":35,"macros":1,"external_links":0,"defined_names":21,"comments":14,"pivot_tables":0},"unopened":[],"bounds":{"document_bytes":16777216,"sheet_cells":100000,"rows_first":2000,"rows_last":500,"rows_between":2000,"halvings":0,"cell_chars":16384,"cell_head_chars":4096},"cells_cut":0,"cells_raw":0,"read":"whole","date_system":"1900"}

{"sheet":"0_Start","index":0,"n_rows":34,"n_cols":10,"rows_kept":34,"cut":false,"hidden":false,"merged":[[0,0,0,3],[2,9,4,11],[5,9,7,11],[22,0,32,12],[33,0,43,12],[12,0,18,7],[2,0,9,7],[10,0,10,7],[19,0,19,7]]}
["Willkommen "]
[]
["Dieses Risikoanalyseinstrument ist ein excelbasiertes Tool, welches eine umfassende Bewertung und Prävention von Risiken in der Landwirtschaft ermöglicht. Diese Plattform führt Landwirt*innen durch 6 Kategorien von Risiken, die in der Praxis auftreten können.",null,null,null,null,null,null,null,null,"Wählen Sie Ihre bevorzugte Sprache "]
[]
[]
[null,null,null,null,null,null,null,null,null,"Choisissez votre langue préférée "]
[]
[]
[]
[]
["Basiert auf AgriBouclier - Agricultural Management of Canada (GAC) (2014)"]
[]
["Cet instrument d'analyse des risques basé sur Excel offre une vision à 360° de l'évaluation et de la gestion des risques dans l'agriculture.Il guide les agriculteurs à travers 6 types de risques auxquels ils peuvent faire face."]
[]
[]
[]
[]
[]
[]
["Inspiré d’AgriBouclier - Gestion agricole du Canada (GAC) (2014)"]
[]
[]
["Dieses Instrument basiert auf AgriBouclier, einer umfassenden Plattform zur Risikobewertung und zum Risikomanagement für die kanadische Landwirtschaft, die unter der Leitung von Agricultural Management of Canada (GAC) entwickelt wurde.\nDer Inhalt von AgriBouclier basiert auf dem umfassenden Leitfaden zum Risikomanagement in der Landwirtschaft (2014) von GAC sowie auf umfangreichen Recherchen, einschließlich Literaturanalysen und Befragungen von Interessengruppen und Branchenexperten in Kanada, wie Landwirten, Beratern, Akademikern und Regierungsbeamten.\nBei der Entwicklung des vorliegenden Instruments konnten wir auf die Unterstützung von Agricultural Management of Canada und kanadischen Experten für das Risikomanagement auf landwirtschaftlichen Betrieben zurückgreifen. Wir möchten ihnen an dieser Stelle unseren Dank aussprechen.\n"]
[]
[]
[]
[]
[]
[]
[]
[]
[]
[]
["Cet instrument s’inspire d’AgriBouclier, une plateforme complète d’évaluation et de gestion des risques destinée aux agriculteurs canadiens et élaborée sous la direction de Gestion agricole du Canada (GAC).\nLe contenu d’Agribouclier se fonde sur le Guide complet sur la gestion du risque en agriculture (2014) de GAC ainsi que sur des recherches approfondies, y compris des analyses documentaires et des consultations menées au Canada auprès de parties prenantes et d’experts de la branche, dont des agriculteurs, des conseillers, des universitaires et des membres du gouvernement.\nPour développer l’instrument présent, nous avons pu bénéficier du soutien de Gestion agricoles du Canada et d’experts canadiens en gestion des risques sur les exploitations agricoles. Nous profitons de les remercier ici."]

{"sheet":"0.1_Introduction","index":1,"n_rows":67,"n_cols":14,"rows_kept":67,"cut":false,"hidden":true,"merged":[[0,0,0,3],[1,0,5,9],[8,1,8,4],[9,1,9,4],[66,12,69,15],[10,1,10,4],[10,6,10,15],[26,1,31,15],[39,12,45,15],[49,12,54,15],[1,11,1,12],[1,13,1,14],[7,0,7,4],[56,12,59,15],[61,12,64,15]]}
["À qui s'adresse cet instrument ?"]
["Cet instrument doit aider à catégoriser les risques existants sur les exploitations agricoles et à élaborer une hiérarchisation. Ainsi, l'outil peut être utilisé de manière indépendante par les agriculteurs, avec ou sans conseil. En outre, les services de conseil et les écoles professionnelles peuvent utiliser cet outil pour obtenir une vue d'ensemble des risques sur l'exploitation.",null,null,null,null,null,null,null,null,null,null,"Section détaillée",null,"Aperçu rapide"]
[]
[]
[]
[]
[]
["Processus de l'outil dans la section détaillée"]
[1,"Remplissez la fiche de travail \"1_1ère estimation simplifiée\"."]
[2,"Remplissez les chapitres suivants :  Personnes, Finances, Marchés, Management, Environnement commercial, Production (commencez avec les chapitres présentant le plus haut degré de risque)"]
[3,"Observez le résultat final sur la feuille de travail \"Résultat\" et comparez-le à votre évaluation sur la feuille de travail \"Graphiques\". ",null,null,null,null,"Remplir la question de 1 à 5   Remplir la question de 1 à 10        Commentaire personnel"]
[]
[]
[]
[]
[]
[]
[]
[]
[]
[]
[]
[]
[]
[]
[]
[null,"          Remplir la question de 1 à 5                                           Remplir la question de 1 à 10                    Choisir la réponse            Ajouter un commentaire/une remarque"]
[]
[]
[]
[]
[]
[]
[]
[]
[]
[]
[]
[]
[null,null,null,null,null,null,null,null,null,null,null,null,"Ces chiffres indiquent le nombre de fois où vous avez indiqué qu'il y avait un besoin d'action dans ce chapitre. Ces chiffres peuvent vous aider à établir vos priorités."]
[]
[]
[]
[]
[]
[]
[]
[]
[]
[null,null,null,null,null,null,null,null,null,null,null,null,"En noir, vous voyez l'évaluation de votre estimation rapide. En violet, les évaluations de l'analyse des risques. Vous pouvez voir comment elles se situent par rapport aux différents chapitres."]
[]
[]
[]
[]
[]
[]
[null,null,null,null,null,null,null,null,null,null,null,null,"Tous les points dans la zone rouge ont une mauvaise préparation et le probabilité d'arriver et la gravité du risque sont importants. "]
[]
[]
[]
[]
[null,null,null,null,null,null,null,null,null,null,null,null,"Les points dans la zone verte indiquent que le risque et l'ampleur sont moindres et que vous êtes déjà préparés."]
[]
[]
[]
[]
[null,null,null,null,null,null,null,null,null,null,null,null,"Ce graphique vous montre également s'il y a des différences entre votre première estimation et l'examen plus approfondi."]

{"sheet":"0.1_Einführung","index":2,"n_rows":67,"n_cols":14,"rows_kept":67,"cut":false,"hidden":false,"merged":[[1,0,5,9],[0,0,0,3],[49,12,54,15],[56,12,59,15],[61,12,64,15],[0,11,1,12],[0,13,1,14],[7,0,7,4],[8,1,8,4],[66,12,69,15],[10,6,10,15],[26,1,31,15],[39,12,45,15],[9,1,9,4],[10,1,10,4]]}
["Für wenn ist dieses Tool ?",null,null,null,null,null,null,null,null,null,null,"Ausführlicher Bereich",null,"Schnellübersicht "]
["Diese Tool soll helfen die vorhandenen Risiken auf dem Bauernhof zu kategorisieren und eine Priorisierung auszuarbeiten. Somit kann das Tool unabhängig auf den Bauernhöfen, mit oder ohne Beratung, eingesetzt werden. Zudem können Beratungsstellen und Berufsschulen dieses Tool nutzen, um eine Übersicht des Bauernhofes zu bekommen."]
[]
[]
[]
[]
[]
["Ablauf des Tools im ausführlichen Bereich"]
[1,"Füllen Sie das Arbeitsblatt \"Erste Einschätzung\" aus."]
[2,"Füllen Sie folgende Kapitel aus:  Personen, Finanzen, Märkte, Management, Geschäftsumfeld, Produktion (Beginnen Sie mit den Kapiteln mit dem höchsten Risiko)"]
[3,"Betrachten Sie das Gesamtresultat auf dem Arbeitblatt \"Resultat\" und vergleichen Sie es mit Ihrer Einschätzung auf dem Arbeitsblatt \"Grafiken\". ",null,null,null,null,"Frage mit 1 - 5 ausfüllen      Frage mit 1 - 10 ausfüllen         Eigener Kommentar"]
[]
[]
[]
[]
[]
[]
[]
[]
[]
[]
[]
[]
[]
[]
[]
[null,"Frage mit 1 - 5 ausfüllen                      Frage mit 1 - 10 ausfüllen             Antwort auswählen                 Kommentar/Bemerkung hinzufügen"]
[]
[]
[]
[]
[]
[]
[]
[]
[]
[]
[]
[]
[null,null,null,null,null,null,null,null,null,null,null,null,"Diese Prozetzahlen zeigen an, wie  häufig Sie angegeben haben, dass es einen Handlungsbedarf in diesem Kapitel gibt. Diese Zahlen können bei Ihrer Priorisierung helfen."]
[]
[]
[]
[]
[]
[]
[]
[]
[]
[null,null,null,null,null,null,null,null,null,null,null,null,"In Schwarz geschrieben sehen Sie die Auswertung Ihrer ersten Einschätzung. Violett geschrieben sind die Auswertungen der Risikoanalyse. Hier können Sie sehen, wie sie bei den einzelnen Kapiteln stehen. "]
[]
[]
[]
[]
[]
[]
[null,null,null,null,null,null,null,null,null,null,null,null,"Alle Punkte im roten Bereich haben eine schlechte Bereitschaft und die Gefahr auf ein Eintreffen und die Schwere des Risikos ist gross. "]
[]
[]
[]
[]
[null,null,null,null,null,null,null,null,null,null,null,null,"Punkte im grünen Bereich sagen aus, dass das Risiko und das Ausmass kleiner ist und die Bereitschaft von Ihrer Seite gegeben ist."]
[]
[]
[]
[]
[null,null,null,null,null,null,null,null,null,null,null,null,"Diese Grafik zeigt Ihnen ebenfalls auf, ob es Differenzen gibt zwischen Ihrer Einschätzung und der genaueren Überprüfung."]

{"sheet":"1_Erste Einschätzung","index":3,"n_rows":28,"n_cols":8,"rows_kept":28,"cut":false,"hidden":false,"merged":[[0,7,1,7],[0,8,1,8]]}
["Risiko \n(A)","Häufigkeit des Risikos\n(B) ","Ausmaß oder Gefährdung des Risikos\n(C)","Grad des Risikos\n(B+C=D)","Bereitschaft\n( E )","Schätzung des Bereitschaft \n(F)","Erklährung der Bereitschaft \n(G)","Hier klicken für die vertiefte Analyse"]
["Thema / Bereich ","Zahl von 1 - 5       Immer=5; Gelegentlich=3; Selten=1","Zahl von 1 - 5\nSchwerwiegend=5; Mäßig=3; Geringfügig=1","(Häufigkeit des Risikos + Ausmaß der Risikoexposition)","Zahl von 1-10\nSehr gut vorbereitet=10; Einigermaßen vorbereitet=5; Nicht vorbereitet=1","1-3 = Handlungsbedarf, 4 - 6 = Aufpassen,          7-10 = Bereit","Erste Überlegungen zur Risikobewältigung"]
["Personen ",{"$f":"SUM(B4:B8)/5","v":0},{"$f":"SUM(C4:C8)/5","v":0},{"$f":"IF(B3+C3>0,B3+C3,\"\")","v":""},{"$f":"SUM(E4:E8)/5","v":0}]
["Gesundheit und Sicherheit am Arbeitsplatz",null,null,{"$f":"IF(B4+C4>0,B4+C4,\"\")","v":""},null,{"$f":"E4","v":0}]
["Persönliches Wohlbefinden",null,null,{"$f":"IF(B5+C5>0,B5+C5,\"\")","v":""},null,0]
["Eingestellte Arbeitskräfte",null,null,"",null,0]
["Familienbeziehungen",null,null,"",null,0]
["Unternehmer und Berater",null,null,"",null,0]
["Finanzen",{"$f":"SUM(B10:B11)/2","v":0},{"$f":"SUM(C10:C11)/2","v":0},"",{"$f":"SUM(E10:E11)/2","v":0}]
["Geldmanagement",null,null,"",null,0]
["Investitionen",null,null,"",null,0]
["Märkte",{"$f":"SUM(B13:B14)/2","v":0},{"$f":"SUM(C13:C14)/2","v":0},{"$f":"IF(B12+C12>0,B12+C12,\"\")","v":""},{"$f":"SUM(E13:E14)/2","v":0}]
["Einkauf, Beschaffung",null,null,"",null,0]
["Verkauf, Preise, Handel",null,null,"",null,0]
["Management",{"$f":"SUM(B16:B19)/4","v":0},{"$f":"SUM(C16:C19)/4","v":0},"",{"$f":"SUM(E16:E19)/4","v":0}]
["Unternehmensstrategie und -entwicklung ",null,null,"",null,0]
["Technologie und Innovation",null,null,"",null,0]
["Hofübergabe",null,null,"",null,0]
["Betrieb",null,null,"",null,0]
["Betriebsumgebung ",{"$f":"SUM(B21:B22)/2","v":0},{"$f":"SUM(C21:C22)/2","v":0},"",{"$f":"SUM(E21:E22)/2","v":0}]
["Öffentliches Vertrauen und Einbeziehung der Verbraucher",null,null,"",null,0]
["Politik, Politiken und Vorschriften",null,null,"",null,0]
["Produktion ",{"$f":"SUM(B24:B28)/5","v":0},{"$f":"SUM(C24:C28)/5","v":0},"",{"$f":"SUM(E24:E28)/5","v":0}]
["Umwelt und Klima",null,null,"",null,0]
["Gesundheit und Wohlergehen von Tieren",null,null,"",null,0]
["Nährstoffmanagement ",null,null,"",null,0]
["Pflanzenschutz",null,null,"",null,0]
["Boden-, Wasser- und Biodiversitätsmanagement",null,null,"",null,0]

{"sheet":"Hilfe","index":4,"n_rows":31,"n_cols":4,"rows_kept":31,"cut":false,"hidden":true,"merged":[[18,3,18,10],[19,3,19,10],[20,3,20,10],[6,3,6,10],[7,3,7,10],[8,3,8,10],[9,3,9,10],[10,3,10,10],[12,3,12,10],[13,3,13,10],[27,3,27,10],[28,3,28,10],[29,3,29,10],[30,3,30,10],[5,2,5,10],[11,2,11,10],[14,2,14,10],[17,2,17,10],[22,2,22,10],[25,2,25,10],[21,3,21,10],[23,3,23,10],[24,3,24,10],[26,3,26,10],[15,3,15,10],[16,3,16,10]]}
[]
[]
[]
[]
[]
[null,null,"Personen "]
[null,null,"Gesundheit und Sicherheit am Arbeitsplatz","Wie oft sind Sie in Ihrem Betrieb mit Problemen im Zusammenhang mit Gesundheit und Sicherheit am Arbeitsplatz konfrontiert worden?"]
[null,null,"Persönliches Wohlbefinden","Wie oft haben Sie Probleme im Zusammenhang mit Ihrem persönlichen Wohlbefinden erlebt (z. B. körperliche oder geistige Erschöpfung, soziale Isolation, Behinderung usw.)?"]
[null,null,"Eingestellte Arbeitskräfte","Wie oft sind Sie in Ihrem Betrieb mit Problemen im Zusammenhang mit angestellten Arbeitskräften konfrontiert worden?"]
[null,null,"Familienbeziehungen","Wie oft haben Sie schon Probleme im Zusammenhang mit familiären Beziehungen erlebt?"]
[null,null,"Unternehmer und Berater","Wie oft haben Sie in Ihrem Betrieb Probleme mit Auftragnehmern und Beratern gehabt?"]
[null,null,"Finanzen"]
[null,null,"Geldmanagement","Wie oft sind Sie in Ihrem Betrieb mit Problemen im Zusammenhang mit ihrem Geldmanagement konfrontiert worden?"]
[null,null,"Investitionen","Wie oft haben Sie in Ihrem Betrieb Probleme mit Investitionen gehabt?"]
[null,null,"Märkte"]
[null,null,"Einkauf, Beschaffung","Wie oft haben Sie in Ihrem Betrieb Probleme im Zusammenhang mit dem Einkauf und der Beschaffung von Betriebsmitteln gehabt? (Verfügbarkeit, Qualität)"]
[null,null,"Verkauf, Preise, Handel","Wie oft haben Sie in Ihrem Betrieb Probleme im Zusammenhang mit dem Verkauf, Preis und Handel erlebt? (Abnahmeverträge, Qualität)"]
[null,null,"Management"]
[null,null,"Unternehmensstrategie und -entwicklung ","Wie oft haben Sie in Ihrem Betrieb Probleme im Zusammenhang mit der Unternehmensstrategie und -entwicklung erlebt?"]
[null,null,"Technologie und Innovation","Wie oft haben Sie in Ihrem Betrieb Probleme im Zusammenhang mit Technologie und Innovation erlebt?"]
[null,null,"Hofübergabe","Wie hoch ist die Wahrscheinlichkeit, dass Sie in Ihrem Betrieb Probleme im Zusammenhang mit der Hofübergabe haben?"]
[null,null,"Betrieb","Wie oft haben Sie Probleme mit den Prozessen und Verfahren im Zusammenhang mit Ihren Arbeitsabläufen in Ihrem Betrieb gehabt?"]
[null,null,"Betriebsumgebung "]
[null,null,"Öffentliches Vertrauen und Einbeziehung der Verbraucher","Wie oft sind Sie in Ihrem Betrieb mit Problemen im Zusammenhang mit öffentlichem Vertrauen und Verbraucherschutz konfrontiert worden?"]
[null,null,"Politik, Politiken und Vorschriften","Wie oft sind Sie in Ihrem Betrieb mit Problemen im Zusammenhang mit Politik, Richtlinien und Vorschriften konfrontiert worden?"]
[null,null,"Produktion "]
[null,null,"Umwelt und Klima","Wie oft sind Sie auf Ihrem Betrieb mit Problemen im Zusammenhang mit Umwelt und Klima konfrontiert worden?"]
[null,null,"Gesundheit und Wohlergehen von Tieren","Wie oft haben Sie in Ihrem Betrieb Probleme mit der Tiergesundheit und dem Tierschutz erlebt?"]
[null,null,"Nährstoffmanagement ","Wie oft haben Sie in Ihrem Betrieb Probleme mit dem Nährstoffmanagement gehabt?"]
[null,null,"Pflanzenschutz","Wie oft haben Sie in Ihrem Betrieb Probleme mit der Schädlings- und Krankheitsbekämpfung gehabt?"]
[null,null,"Boden-, Wasser- und Biodiversitätsmanagement","Wie oft haben Sie in Ihrem Betrieb Probleme im Zusammenhang mit der Bewirtschaftung von Boden, Wasser und biologischer Vielfalt erlebt?"]

{"sheet":"1_1ère estimation simplifiée","index":5,"n_rows":28,"n_cols":8,"rows_kept":28,"cut":false,"hidden":true,"merged":[[0,7,1,7]]}
["Risque\n(A)","Probabilité  du risque   (B) ","Sévérité de l'impact du risque\n(C)","Degré de risque\n(B+C=D)","Prévention du risque\n( E )","Estimation de l'état de préparation \n(F)","Expliquer l'état de préparation \n(G)","Cliquez ici pour une analyse approfondie"]
["Thème","Nombre de 1 à 5       Toujours=5 ; Occasionnellement=3 ; Rarement=1","Nombre de 1 à 5\nGrave=5 ; Modéré=3 ; Mineur=1","(fréquence du risque + gravité de l'impact du risque)","Nombre de 1 à 10\nTrès bien préparé=10 ; Assez bien préparé=5 ; Pas préparé=1","1-3 = nécessité d'agir, 4 - 6 = faire attention,   7-10 = prêt","Premières considérations sur la gestion des risques"]
["Personnes",{"$f":"SUM(B4:B8)/5","v":0},{"$f":"SUM(C4:C8)/5","v":0},{"$f":"IF(B3+C3>0,B3+C3,\"\")","v":""},{"$f":"SUM(E4:E8)/5","v":0}]
["Santé et sécurité au travail",null,null,{"$f":"IF(B4+C4>0,B4+C4,\"\")","v":""},null,{"$f":"E4","v":0}]
["Bien-être personnel",null,null,{"$f":"IF(B5+C5>0,B5+C5,\"\")","v":""},null,{"$f":"E5","v":0}]
["Employés",null,null,"",null,0]
["Relations familiales",null,null,"",null,0]
["Entrepreneur et conseiller",null,null,"",null,{"$f":"E8","v":0}]
["Finances",{"$f":"SUM(B10:B11)/2","v":0},{"$f":"SUM(C10:C11)/2","v":0},"",{"$f":"SUM(E10:E11)/2","v":0}]
["Gestion de la trésorerie ",null,null,"",null,{"$f":"E10","v":0}]
["Investissements",null,null,"",null,{"$f":"E11","v":0}]
["Marché",{"$f":"SUM(B13:B14)/2","v":0},{"$f":"SUM(C13:C14)/2","v":0},"",{"$f":"SUM(E13:E14)/2","v":0}]
["Achats, approvisonnement ",null,null,"",null,{"$f":"E13","v":0}]
["Ventes, prix et commerce ",null,null,"",null,{"$f":"E14","v":0}]
["Gestion",{"$f":"SUM(B16:B19)/4","v":0},{"$f":"SUM(C16:C19)/4","v":0},"",{"$f":"SUM(E16:E19)/4","v":0}]
["Stratégie et développement de l'entreprise ",null,null,"",null,{"$f":"E16","v":0}]
["Innovation",null,null,"",null,{"$f":"E17","v":0}]
["Planification de la transmission",null,null,"",null,0]
["Entreprise",null,null,"",null,0]
["l'environnement commercial",{"$f":"SUM(B21:B22)/2","v":0},{"$f":"SUM(C21:C22)/2","v":0},"",{"$f":"SUM(E21:E22)/2","v":0}]
["Confiance de la population ou protection des consommateurs",null,null,"",null,{"$f":"E21","v":0}]
["Politique, progammes particuliers et réglementations",null,null,"",null,{"$f":"E22","v":0}]
["Production ",{"$f":"SUM(B24:B28)/5","v":0},{"$f":"SUM(C24:C28)/5","v":0},"",{"$f":"SUM(E24:E28)/5","v":0}]
["Environnement et climat",null,null,"",null,{"$f":"E24","v":0}]
["Santé et bien-être des animaux",null,null,"",null,{"$f":"E25","v":0}]
["Gestion des nutriments ",null,null,"",null,0]
["Protection des plantes",null,null,"",null,0]
["Gestion des sols, de l'eau et de la biodiversité",null,null,"",null,0]

{"sheet":"Explication","index":6,"n_rows":30,"n_cols":5,"rows_kept":30,"cut":false,"hidden":true,"merged":[[24,3,24,4],[4,3,4,4],[10,3,10,4],[13,3,13,4],[16,3,16,4],[21,3,21,4]]}
[]
[]
[]
[]
[null,null,null,"Personnes"]
[null,null,null,"Santé et sécurité au travail","À quelle fréquence avez-vous rencontré des problèmes liés à la Santé et à la sécurité au travail sur votre ferme?"]
[null,null,null,"Bien-être personnel","À quelle fréquence avez-vous rencontré des problèmes liés à votre Bien-être personnel (p. ex. Fatigue physique ou mentale, isolement social, invalidité, etc.)?"]
[null,null,null,"Employés","À quelle fréquence avez-vous rencontré des problèmes liés à la Main-d’œuvre salariée sur votre ferme?"]
[null,null,null,"Relations familiales","À quelle fréquence avez-vous rencontré des problèmes liés aux Relations familiales?"]
[null,null,null,"Entrepreneur et conseiller","À quelle fréquence avez-vous rencontré des problèmes liés aux Entrepreneurs et conseillers sur votre ferme?"]
[null,null,null,"Finances"]
[null,null,null,"Gestion de la trésorerie ","À quelle fréquence avez-vous rencontré des problèmes liés à la trésorerie sur votre ferme?"]
[null,null,null,"Investissements","À quelle fréquence avez-vous rencontré des problèmes liés aux Investissements sur votre ferme?"]
[null,null,null,"Marché"]
[null,null,null,"Achats, approvisonnement ","Dans votre ferme, combien de fois avez-vous rencontré des problèmes liés à l'achat et à l'approvisionnement de moyens de production ? (disponibilité, qualité)"]
[null,null,null,"Ventes, prix et commerce ","Dans votre ferme, combien de fois avez-vous rencontré des problèmes liés à la vente, au prix et au commerce ? (contrats d'achat, qualité)"]
[null,null,null,"Gestion"]
[null,null,null,"Stratégie et développement de l'entreprise ","À quelle fréquence avez-vous rencontré des problèmes liés à la Stratégie et le développement de l’entreprise sur votre ferme?"]
[null,null,null,"Innovation","À quelle fréquence avez-vous rencontré des problèmes liés à la Technologie et l’innovation sur votre ferme?"]
[null,null,null,"Planification de la transmission","Quelle est la probabilité que vous rencontriez des problèmes liés à la planification de la relève sur votre ferme?"]
[null,null,null,"Entreprise","À quelle fréquence avez-vous rencontré des problèmes liés aux Opérations sur votre ferme?"]
[null,null,null,"l'environnement commercial"]
[null,null,null,"Confiance de la population ou protection des consommateurs","À quelle fréquence avez-vous rencontré des problèmes liés à la confiance de la population ou la protection des consommateurs sur votre ferme?"]
[null,null,null,"Politique, progammes particuliers et réglementations","À quelle fréquence avez-vous rencontré des problèmes liés aux Politiques, aux programmes et à la règlementation sur votre ferme?"]
[null,null,null,"Production "]
[null,null,null,"Environnement et climat","À quelle fréquence avez-vous rencontré des problèmes liés à l’Environnement et au climat sur votre ferme?"]
[null,null,null,"Santé et bien-être des animaux","À quelle fréquence avez-vous rencontré des problèmes liés à la Santé et au bien-être des animaux sur votre ferme?"]
[null,null,null,"Gestion des nutriments ","À quelle fréquence avez-vous rencontré des problèmes liés à la Gestion des matières fertilisantes sur votre ferme?"]
[null,null,null,"Protection des plantes","À quelle fréquence avez-vous rencontré des problèmes liés à la Gestion des ennemis des cultures sur votre ferme?"]
[null,null,null,"Gestion des sols, de l'eau et de la biodiversité","À quelle fréquence avez-vous rencontré des problèmes liés à la Gestion du sol, de l’eau et de la biodiversité sur votre ferme?"]

{"sheet":"Gesundheit und Sicherheit","index":7,"n_rows":0,"n_cols":0,"rows_kept":0,"cut":false,"hidden":true,"merged":[]}

{"sheet":"1.1_Information rapide","index":8,"n_rows":28,"n_cols":2,"rows_kept":28,"cut":false,"hidden":true,"merged":[[0,0,1,1],[22,0,22,1],[19,0,19,1],[14,0,14,1],[11,0,11,1],[8,0,8,1],[2,0,2,1]]}
["Aperçu rapide"]
[]
["Personnes"]
["Santé et sécurité au travail","À quelle fréquence avez-vous rencontré des problèmes liés à la Santé et à la sécurité au travail sur votre ferme?"]
["Bien-être personnel","À quelle fréquence avez-vous rencontré des problèmes liés à votre Bien-être personnel (p. ex. Fatigue physique ou mentale, isolement social, invalidité, etc.)?"]
["Employés","À quelle fréquence avez-vous rencontré des problèmes liés à la Main-d’œuvre salariée sur votre ferme?"]
["Relations familiales","À quelle fréquence avez-vous rencontré des problèmes liés aux Relations familiales?"]
["Entrepreneur et conseiller","À quelle fréquence avez-vous rencontré des problèmes liés aux Entrepreneurs et conseillers sur votre ferme?"]
["Finances"]
["Gestion de la trésorerie ","À quelle fréquence avez-vous rencontré des problèmes liés à la trésorerie sur votre ferme?"]
["Investissements","À quelle fréquence avez-vous rencontré des problèmes liés aux Investissements sur votre ferme?"]
["Marché"]
["Achats, approvisonnement ","Dans votre ferme, combien de fois avez-vous rencontré des problèmes liés à l'achat et à l'approvisionnement de moyens de production ? (disponibilité, qualité)"]
["Ventes, prix et commerce ","Dans votre ferme, combien de fois avez-vous rencontré des problèmes liés à la vente, au prix et au commerce ? (contrats d'achat, qualité)"]
["Gestion"]
["Stratégie et développement de l'entreprise ","À quelle fréquence avez-vous rencontré des problèmes liés à la Stratégie et le développement de l’entreprise sur votre ferme?"]
["Innovation","À quelle fréquence avez-vous rencontré des problèmes liés à la Technologie et l’innovation sur votre ferme?"]
["Planification de la transmission","Quelle est la probabilité que vous rencontriez des problèmes liés à la planification de la relève sur votre ferme?"]
["Entreprise","À quelle fréquence avez-vous rencontré des problèmes liés aux Opérations sur votre ferme?"]
["l'environnement commercial"]
["Confiance de la population ou protection des consommateurs","À quelle fréquence avez-vous rencontré des problèmes liés à la confiance de la population ou la protection des consommateurs sur votre ferme?"]
["Politique, progammes particuliers et réglementations","À quelle fréquence avez-vous rencontré des problèmes liés aux Politiques, aux programmes et à la règlementation sur votre ferme?"]
["Production "]
["Environnement et climat","À quelle fréquence avez-vous rencontré des problèmes liés à l’Environnement et au climat sur votre ferme?"]
["Santé et bien-être des animaux","À quelle fréquence avez-vous rencontré des problèmes liés à la Santé et au bien-être des animaux sur votre ferme?"]
["Gestion des nutriments ","À quelle fréquence avez-vous rencontré des problèmes liés à la Gestion des matières fertilisantes sur votre ferme?"]
["Protection des plantes","À quelle fréquence avez-vous rencontré des problèmes liés à la Gestion des ennemis des cultures sur votre ferme?"]
["Gestion des sols, de l'eau et de la biodiversité","À quelle fréquence avez-vous rencontré des problèmes liés à la Gestion du sol, de l’eau et de la biodiversité sur votre ferme?"]

{"sheet":"1.1_Schnelle Information","index":9,"n_rows":28,"n_cols":2,"rows_kept":28,"cut":false,"hidden":false,"merged":[[22,0,22,8],[26,1,26,8],[27,1,27,8],[0,0,1,8],[2,0,2,8],[6,1,6,8],[8,0,8,8],[9,1,9,8],[11,0,11,8],[12,1,12,8],[14,0,14,8],[17,1,17,8],[19,0,19,8],[23,1,23,8],[24,1,24,8],[25,1,25,8],[18,1,18,8],[21,1,21,8],[20,1,20,8],[10,1,10,8],[13,1,13,8],[15,1,15,8],[4,1,4,8],[5,1,5,8],[7,1,7,8],[3,1,3,8],[16,1,16,8]]}
["Schnellübersicht\n"]
[]
["Personen "]
["Gesundheit und Sicherheit am Arbeitsplatz","Wie oft sind Sie in Ihrem Betrieb mit Problemen im Zusammenhang mit Gesundheit und Sicherheit am Arbeitsplatz konfrontiert worden?"]
["Persönliches Wohlbefinden","Wie oft haben Sie Probleme im Zusammenhang mit Ihrem persönlichen Wohlbefinden erlebt (z. B. körperliche oder geistige Erschöpfung, soziale Isolation, Behinderung usw.)?"]
["Eingestellte Arbeitskräfte","Wie oft sind Sie in Ihrem Betrieb mit Problemen im Zusammenhang mit angestellten Arbeitskräften konfrontiert worden?"]
["Familienbeziehungen","Wie oft haben Sie schon Probleme im Zusammenhang mit familiären Beziehungen erlebt?"]
["Unternehmer und Berater","Wie oft haben Sie in Ihrem Betrieb Probleme mit Auftragnehmern und Beratern gehabt?"]
["Finanzen"]
["Geldmanagement","Wie oft sind Sie in Ihrem Betrieb mit Problemen im Zusammenhang mit ihrem Geldmanagement konfrontiert worden?"]
["Investitionen","Wie oft haben Sie in Ihrem Betrieb Probleme mit Investitionen gehabt?"]
["Märkte"]
["Einkauf, Beschaffung","Wie oft haben Sie in Ihrem Betrieb Probleme im Zusammenhang mit dem Einkauf und der Beschaffung von Betriebsmitteln gehabt? (Verfügbarkeit, Qualität)"]
["Verkauf, Preise, Handel","Wie oft haben Sie in Ihrem Betrieb Probleme im Zusammenhang mit dem Verkauf, Preis und Handel erlebt? (Abnahmeverträge, Qualität)"]
["Management"]
["Unternehmensstrategie und -entwicklung ","Wie oft haben Sie in Ihrem Betrieb Probleme im Zusammenhang mit der Unternehmensstrategie und -entwicklung erlebt?"]
["Technologie und Innovation","Wie oft haben Sie in Ihrem Betrieb Probleme im Zusammenhang mit Technologie und Innovation erlebt?"]
["Hofübergabe","Wie hoch ist die Wahrscheinlichkeit, dass Sie in Ihrem Betrieb Probleme im Zusammenhang mit der Hofübergabe haben?"]
["Betrieb","Wie oft haben Sie Probleme mit den Prozessen und Verfahren im Zusammenhang mit Ihren Arbeitsabläufen in Ihrem Betrieb gehabt?"]
["Betriebsumgebung "]
["Öffentliches Vertrauen und Einbeziehung der Verbraucher","Wie oft sind Sie in Ihrem Betrieb mit Problemen im Zusammenhang mit öffentlichem Vertrauen und Verbraucherschutz konfrontiert worden?"]
["Politik, Politiken und Vorschriften","Wie oft sind Sie in Ihrem Betrieb mit Problemen im Zusammenhang mit Politik, Richtlinien und Vorschriften konfrontiert worden?"]
["Produktion "]
["Umwelt und Klima","Wie oft sind Sie auf Ihrem Betrieb mit Problemen im Zusammenhang mit Umwelt und Klima konfrontiert worden?"]
["Gesundheit und Wohlergehen von Tieren","Wie oft haben Sie in Ihrem Betrieb Probleme mit der Tiergesundheit und dem Tierschutz erlebt?"]
["Nährstoffmanagement ","Wie oft haben Sie in Ihrem Betrieb Probleme mit dem Nährstoffmanagement gehabt?"]
["Pflanzenschutz","Wie oft haben Sie in Ihrem Betrieb Probleme mit der Schädlings- und Krankheitsbekämpfung gehabt?"]
["Boden-, Wasser- und Biodiversitätsmanagement","Wie oft haben Sie in Ihrem Betrieb Probleme im Zusammenhang mit der Bewirtschaftung von Boden, Wasser und biologischer Vielfalt erlebt?"]

{"sheet":"2.1_Personen","index":10,"n_rows":44,"n_cols":9,"rows_kept":44,"cut":false,"hidden":false,"merged":[[0,0,0,7]]}
["Risiko-Ranking für landwirtschaftliche Unternehmen"]
["Risiko  Personen\n(A)",null,"Häufigkeit des Risikos\n(B) ","Ausmaß oder Gefährdung des Risikos\n(C)","Grad des Risikos\n(B+C=D)","Bereitschaft\n( E )","Unverändert fortfahren\n(F)","Wie weiterfahren\n(G)","Bemerkung "]
["Thema / Bereich ","Frage zum Thema und dessen Häufigkeit","Zahl von 1 - 5       Immer=5; Gelegentlich=3; Selten=1","Zahl von 1 - 5\nSchwerwiegend=5; Mäßig=3; Geringfügig=1","(Häufigkeit des Risikos + Ausmaß der Risikoexposition)","Zahl von 1-10\nSehr gut vorbereitet=10; Einigermaßen vorbereitet=5; Nicht vorbereitet=1","JA ; NEIN","Keine Notwendigkeit; Unterstützung benötigt; Anpassung ","Diskussionspunkte; Massnahmen, Methoden etc. "]
["Gesundheit und Sicherheit am Arbeitsplatz"]
["Traktoren und andere selbstfahrende landwirtschaftliche Geräte","Wie oft arbeitet jemand in Ihrem Betrieb (einschließlich Sie selbst) mit Traktoren und anderen selbstfahrenden landwirtschaftlichen Geräten?",null,null,{"$f":"IF(C5+D5>0,C5+D5,\"\")","v":""}]
["Gefährliche Maschinen und Geräte","Wie oft arbeitet jemand in Ihrem Betrieb (einschließlich Sie selbst) mit gefährlichen Maschinen und/oder Geräten?",null,null,{"$f":"IF(C6+D6>0,C6+D6,\"\")","v":""}]
["Landmaschinen auf der Straße","Wie oft fährt jemand in Ihrem Betrieb (einschließlich Sie selbst) landwirtschaftliche Maschinen auf der Straße?",null,null,""]
["Gefährliche Bereiche","Wie oft arbeitet jemand in Ihrem Betrieb (einschließlich Sie selbst) in gefährlichen Bereichen? (Maschinenbereich, Gas, etc.)",null,null,""]
["Gefährliche Werkstoffe","Wie oft arbeitet jemand in Ihrem Betrieb (einschließlich Sie selbst) mit Gefahrstoffen?",null,null,""]
["Aussetzung an Hitze","Wie oft arbeiten Sie oder jemand in Ihrem Betrieb bei extremer Hitze?",null,null,""]
["Ausrutschen und Stürze","Wie oft arbeitet jemand in Ihrem Betrieb (Sie selbst eingeschlossen) in großer Höhe und/oder auf rutschigem oder instabilem Untergrund?",null,null,""]
["Direkter Kontakt mit Nutztieren","Wie oft hat jemand in Ihrem Betrieb (Sie selbst eingeschlossen) direkten Kontakt mit Nutztieren?",null,null,""]
["Müdigkeit und Stress","Wie oft fühlen Sie sich bei der Arbeit in Ihrem Betrieb erschöpft und/oder gestresst?",null,null,""]
["Falsches Heben oder falsche Körperhaltung","Wie oft kommt es in Ihrem Betrieb zu Zwischenfällen im Zusammenhang mit falschem Heben oder falscher Körperhaltung?",null,null,""]
["Einführung ","Wie oft führen Sie in Ihrem Betrieb neue Mitarbeitende, Aufgaben, Methoden oder Technologien ein?",null,null,""]
["Kinder auf dem Bauernhof ","Wie groß ist die Wahrscheinlichkeit, dass Kinder in gefährliche Situationen oder an gefährliche Orte auf dem Bauernhof geraten?",null,null,""]
["Besucher auf dem Bauernhof","Wie oft haben Sie Besucher auf Ihrem Hof?",null,null,""]
["Nichteinhaltung der Vorschriften ","Wie oft kommt es in Ihrem Betrieb zu Vorfällen im Zusammenhang mit der Nichteinhaltung von Arbeitsschutzvorschriften (BUL)?",null,null,""]
["Unzureichende Sicherheitsplanung","Wie oft kommt es in Ihrem Betrieb zu Arbeitsunfällen? (Inklusive kleinere Unfälle)",null,null,""]
["Persönliches Wohlbefinden"]
["Körperliche oder geistige Ermüdung","Wie oft kommt es vor, dass Sie bei der Arbeit in Ihrem Betrieb körperlich oder geistig ermüden?",null,null,{"$f":"IF(C21+D21>0,C21+D21,\"\")","v":""}]
["Soziale Isolierung","Wie oft fühlen Sie sich bei der Arbeit in Ihrem Betrieb einsam?",null,null,{"$f":"IF(C22+D22>0,C22+D22,\"\")","v":""}]
["Arbeitsunfähigkeit","Wie oft sind Sie aufgrund von Depressionen, Verletzungen oder Krankheiten nicht in der Lage, Ihre beruflichen Anforderungen zu erfüllen?",null,null,{"$f":"IF(C23+D23>0,C23+D23,\"\")","v":""}]
["Überlastung ","Wie oft sind Sie überlastet?  (Risiko von Verletzungsgefahr, Unwohlsein, gefährlichen Situationen)",null,null,{"$f":"IF(C24+D24>0,C24+D24,\"\")","v":""}]
["Eingestellte Arbeitskräfte"]
["Schwierigkeiten bei der Einstellung von Mitarbeitenden","Wie hoch ist die Wahrscheinlichkeit, dass Sie in den nächsten 3 Jahren neue Mitarbeitende einstellen müssen?",null,null,{"$f":"IF(C26+D26>0,C26+D26,\"\")","v":""}]
["Schwierigkeiten beim Halten von Mitarbeitern","Wie hoch ist die Wahrscheinlichkeit, dass einer oder mehrere Ihrer Mitarbeiter in absehbarer Zeit kündigen?",null,null,{"$f":"IF(C27+D27>0,C27+D27,\"\")","v":""}]
["Missverständnisse zwischen Arbeitnehmenden und Arbeitgebenden","Wie oft kommt es zu Missverständnissen zwischen Ihnen und Ihren Mitarbeitenden bezüglich der Arbeitsbedingungen?",null,null,{"$f":"IF(C28+D28>0,C28+D28,\"\")","v":""}]
["Fragen der Mitarbeitermotivation","Wie oft zeigen Ihre Mitarbeitenden einen Motivationsmangel?",null,null,{"$f":"IF(C29+D29>0,C29+D29,\"\")","v":""}]
["Schwierigkeiten zwischen Arbeitnehmenden","Wie oft gibt es in Ihrem Betrieb Schwierigkeiten zwischen den Mitarbeitenden?",null,null,{"$f":"IF(C30+D30>0,C30+D30,\"\")","v":""}]
["Kulturelle Differenzen","Wie oft beschäftigen Sie Arbeitnehmende mit unterschiedlichem kulturellem Hintergrund?",null,null,""]
["Anwerbung von ausländischen Saisonarbeitskräften","Wie oft stellen Sie in Ihrem Betrieb ausländische Saisonarbeitskräfte ein?",null,null,""]
["Ungeplante Abwesenheit ","Wie oft gibt es ungeplante Ausfälle bei Mitarbeitenden und Ihnen?",null,null,""]
["Zusammenarbeit zwischen Betrieben","Können Kommunikationsprobleme im Rahmen der Zusammenarbeit den eigenen Betriebsablauf beeinträchtigen?",null,null,""]
["Familienbeziehungen"]
["Aufnahme eines neuen Familienmitglieds ","Wie hoch ist die Wahrscheinlichkeit, dass Sie in den nächsten 3 Jahren ein neues Familienmitglied (einschließlich Schwiegereltern) in den Betrieb aufnehmen werden?",null,null,{"$f":"IF(C36+D36>0,C36+D36,\"\")","v":""}]
["Unklare Rollen und Verantwortlichkeiten ","Wie oft kommt es in Ihrem Betrieb zu Situationen, in denen die Rollen und Verantwortlichkeiten der Familienmitglieder unklar sind?",null,null,{"$f":"IF(C37+D37>0,C37+D37,\"\")","v":""}]
["Unstimmigkeiten in der Familie","Wie oft kommt es in der Familie zu Unstimmigkeiten auf dem Bauernhof?",null,null,{"$f":"IF(C38+D38>0,C38+D38,\"\")","v":""}]
["Wahrnehmung einer ungerechten Behandlung","Wie oft fühlen sich Familienangehörige oder familienfremde Arbeitnehmende im Vergleich zu ihren Kolleginnen oder Kollegen im Betrieb ungerecht behandelt?",null,null,{"$f":"IF(C39+D39>0,C39+D39,\"\")","v":""}]
["Entlohnung von Familienangehörigen","Wie oft kommt es auf dem Betrieb zu Streitigkeiten über die Entlohnung von Familienmitgliedern?",null,null,{"$f":"IF(C40+D40>0,C40+D40,\"\")","v":""}]
["Unternehmer und Berater"]
["Ungeeignete Auftragnehmende oder Berater","Wie oft stellen Sie in Ihrem Betrieb Lohnunternehmer oder Beratende an?",null,null,{"$f":"IF(C42+D42>0,C42+D42,\"\")","v":""}]
["Schlechte oder unzureichende Arbeit ","Wie oft leisten Auftragnehmende oder Beratende schlechte oder unzureichende Arbeit in Ihrem Betrieb?",null,null,{"$f":"IF(C43+D43>0,C43+D43,\"\")","v":""}]
["Konflikte und Rechtsstreitigkeiten","Wie oft haben Sie (auch kleinere) Konflikte mit Auftragnehmenden oder Beratenden?",null,null,{"$f":"IF(C44+D44>0,C44+D44,\"\")","v":""}]

{"sheet":"2.2_Finanzen","index":11,"n_rows":18,"n_cols":9,"rows_kept":18,"cut":false,"hidden":false,"merged":[[0,0,0,7]]}
["Risiko-Ranking für landwirtschaftliche Unternehmen"]
["Risiko  Finanzen\n(A)",null,"Häufigkeit des Risikos\n(B) ","Ausmaß oder Gefährdung des Risikos\n(C)","Grad des Risikos\n(B+C=D)","Bereitschaft\n( E )","Unverändert fortfahren\n(F)","Wie weiterfahren\n(G)","Bemerkung "]
["Thema / Bereich ","Frage zum Thema und dessen Häufigkeit","Zahl von 1 - 5       Immer=5; Gelegentlich=3; Selten=1","Zahl von 1 - 5\nSchwerwiegend=5; Mäßig=3; Geringfügig=1","(Häufigkeit des Risikos + Ausmaß der Risikoexposition)","Zahl von 1-10\nSehr gut vorbereitet=10; Einigermaßen vorbereitet=5; Nicht vorbereitet=1","JA ; NEIN","Keine Notwendigkeit; Unterstützung benötigt; Anpassung ","Diskussionspunkte; Massnahmen, Methoden etc. "]
["Geldmanagement"]
["Unzureichende Finanzinformationen","Wie oft stehen Sie vor betrieblichen Entscheidungen, bei denen die finanziellen Grundlagen fehlen oder unzureichend sind? ",null,null,{"$f":"IF(C5+D5>0,C5+D5,\"\")","v":""}]
["Mangelnde Finanzkompetenz","Wie oft fühlen Sie sich nicht in der Lage, die finanziellen Informationen über Ihren Betrieb zu verstehen, um solide Geschäftsentscheidungen zu treffen?",null,null,""]
["Unvorhergesehene Ausgaben"," Wie Wahrscheinlich ist es, dass Sie in nächster Zeit unvorhergesehene grosse Ausgaben haben werden? Z.B. aufgrund einer hohen Steuerlast oder teuren Reparaturen.",null,null,""]
["Zahlungsmoral","Wie oft versäumen Sie Zahlungen oder zahlen zu spät?",null,null,""]
["Schwierige Kapitalbeschaffung","Wie oft haben Sie Schwierigkeiten, das für Ihren Betrieb erforderliche Kapital zu beschaffen?",null,null,""]
["Verluste","Wie oft kommt es in Ihrem Betrieb zu einer negativen Eigenkapitalveränderung?",null,null,""]
["Unzureichende Finanzplanung","Wie oft haben Sie das Gefühl, dass Ihnen die notwendigen Informationen fehlen, um mit Kreditgebern oder Käufern zu sprechen und/oder fundierte Kaufentscheidungen zu treffen?",null,null,""]
["Reduktion Privatverbrauch","Wie häufig reduzieren Sie ihren Privatverbrauch zu Gunsten Ihres Betriebes?",null,null,""]
["Unbezahlte Produkte","Wie häufig kommt es vor, dass ein Kunde die Leistung/Produkte nicht zahlen kann?",null,null,""]
["Investitionen"]
["Aufrüstung, Ersetzung ","Wie oft müssen Sie große Geräte, Maschinen oder Gebäude in Ihrem Betrieb ersetzen oder reparieren?",null,null,{"$f":"IF(C15+D15>0,C15+D15,\"\")","v":""}]
["Kauf neuer Geräte, Maschinen oder Grundstücke","Wie oft ergreifen Sie die Gelegenheit, Geräte, Maschinen oder Grundstücke zu kaufen, ohne den Kauf im Voraus geplant zu haben?",null,null,{"$f":"IF(C16+D16>0,C16+D16,\"\")","v":""}]
["Überinvestitionen","Wie wahrscheinlich ist es, dass Sie über den Bedarf Ihres landwirtschaftlichen Betriebs hinaus Maschinen, Geräte oder Land kaufen?",null,null,{"$f":"IF(C17+D17>0,C17+D17,\"\")","v":""}]
["Verschuldung ","Wie oft kommt es vor, dass Sie vor einer Überverschuldung stehen?",null,null,{"$f":"IF(C18+D18>0,C18+D18,\"\")","v":""}]

{"sheet":"2.1_Personnes","index":12,"n_rows":44,"n_cols":9,"rows_kept":44,"cut":false,"hidden":true,"merged":[[0,0,0,7]]}
["Classement des risques pour les entreprises agricoles"]
["Risque Personnes\n(A)",null,"Probabilité du risque   (B) ","Sévérité de l'impact du risque\n(C)","Degré de risque\n(B+C=D)","Prévention du risque\n( E )","Continuer sans changement\n(F)","Comment continuer\n(G)","Commentaire "]
["Thème","Question sur le thème et sa fréquence","Nombre de 1 à 5       Toujours=5 ; Occasionnellement=3 ; Rarement=1","Nombre de 1 à 5\nGrave=5 ; Modéré=3 ; Mineur=1","(fréquence du risque + gravité de l'impact du risque)","Nombre de 1 à 10\nTrès bien préparé=10 ; Assez bien préparé=5 ; Pas préparé=1","OUI ; NON","Pas de nécessité ; soutien nécessaire ; adaptation \n","Points à discuter ; mesures, méthodes, etc. "]
["Santé et sécurité au travail"]
["Tracteurs et autres engins agricoles automoteurs","À quelle fréquence vous-même ou toute personne travaillant sur l’entreprise utilisez-vous des tracteurs et d’autres équipements agricoles motorisés?",null,null,{"$f":"IF(C5+D5>0,C5+D5,\"\")","v":""}]
["Machines et équipements dangereux","À quelle fréquence vous-même ou toute personne travaillant sur l’entreprise utilisez des machines ou de l’équipement dangereux?",null,null,{"$f":"IF(C6+D6>0,C6+D6,\"\")","v":""}]
["Machines agricoles sur la route","À quelle fréquence vous-même ou toute personne travaillant sur votre entreprise conduisez-vous des machines agricoles sur la route?",null,null,""]
["Zones dangereuses","À quelle fréquence vous-même ou toute personne sur votre entreprise travaillez-vous dans des espaces clos ou dangereux? (zone des machines, risque de gaz, etc.)",null,null,""]
["Matériaux dangereux","À quelle fréquence vous-même ou toute personne sur votre entreprise travaillez-vous avec des matières dangereuses?",null,null,""]
["Exposition à la chaleur","À quelle fréquence vous-même ou toute personne sur votre entreprise travaillez-vous dans des conditions de chaleur extrême?",null,null,""]
["Glissades et chutes","À quelle fréquence vous-même ou toute personne sur votre entreprise travaillez-vous à une hauteur considérable ou sur des surfaces glissantes ou instables?",null,null,""]
["Contact direct avec les animaux d'élevage","À quelle fréquence vous-même ou toute personne sur votre entreprise êtes-vous directement en contact avec les animaux?",null,null,""]
["Fatigue et stress","À quelle fréquence vous sentez-vous fatigué ou stressé lorsque vous travaillez sur votre entreprise?",null,null,""]
["Mauvaise façon de soulever ou de se tenir","À quelle fréquence des incidents liés à un levage incorrect ou à une posture inadéquate se produisent-ils au sein de votre entreprise?",null,null,""]
["Introduction ","À quelle fréquence introduisez-vous du nouveau personnel ou de nouvelles tâches, méthodes ou technologies au sein de votre entreprise?",null,null,""]
["Les enfants à la ferme ","Dans quelle mesure est-il probable que des enfants puissent se retrouver dans des situations dangereuses ou dans des endroits dangereux sur l’entreprise?",null,null,""]
["Visiteur à la ferme","À quelle fréquence recevez-vous des visiteurs sur votre entreprise?",null,null,""]
["Non-respect de la réglementation ","Quelle est la fréquence des incidents liés au non-respect des règles de sécurité au travail (SPAA) dans votre entreprise ?",null,null,""]
["Planification insuffisante de la sécurité","À quelle fréquence des accidents de travail, même mineurs, se produisent-ils sur votre entreprise?",null,null,""]
["Bien-être personnel"]
["Fatigue physique ou mentale","À quelle fréquence ressentez-vous de la fatigue physique ou mentale lorsque vous travaillez sur votre entreprise agricole?",null,null,{"$f":"IF(C21+D21>0,C21+D21,\"\")","v":""}]
["Isolement social","A quelle fréquence vous sentez-vous isolé ou seul ?",null,null,{"$f":"IF(C22+D22>0,C22+D22,\"\")","v":""}]
["Invalidité","À quelle fréquence vous retrouvez-vous dans l’incapacité de répondre aux exigences de votre emploi en raison d’une dépression, d’une blessure ou d’une maladie?",null,null,{"$f":"IF(C23+D23>0,C23+D23,\"\")","v":""}]
["Surcharge","A quelle fréquence êtes vous en surcharge de travail ?  (risque de blessure, de malaise, de situation dangereuse)",null,null,{"$f":"IF(C24+D24>0,C24+D24,\"\")","v":""}]
["Employés"]
["Difficultés de recrutement","Dans quelle mesure est-il probable que vous ayez des difficultés à embaucher de nouveaux employés au cours des trois prochaines années?",null,null,{"$f":"IF(C26+D26>0,C26+D26,\"\")","v":""}]
["Difficultés à retenir le personnel","Dans quelle mesure est-il probable qu’un ou plusieurs de vos employés quittent volontairement leur emploi dans un avenir prochain?",null,null,{"$f":"IF(C27+D27>0,C27+D27,\"\")","v":""}]
["Malentendus entre employés et employeurs","À quelle fréquence des malentendus au sujet des conditions de travail surviennent-ils entre vous et vos employés?",null,null,{"$f":"IF(C28+D28>0,C28+D28,\"\")","v":""}]
["Questions de motivation des employés","À quelle fréquence vos employés démontrent-ils un manque de motivation?",null,null,{"$f":"IF(C29+D29>0,C29+D29,\"\")","v":""}]
["Difficultés entre travailleurs","À quelle fréquence des difficultés entre employés surviennent-elles au sein de votre entreprise agricole?",null,null,{"$f":"IF(C30+D30>0,C30+D30,\"\")","v":""}]
["Différences culturelles","À quelle fréquence employez-vous des travailleurs issus de cultures différentes?",null,null,""]
["Recrutement de travailleurs intérimaires étrangers","À quelle fréquence recrutez-vous des travailleurs étrangers temporaires au sein de votre entreprise agricole?",null,null,""]
["Absence non planifiée","Quelle est la fréquence des absences imprévues de vos collaborateurs et de vous-même ?",null,null,""]
["Collaborations entre exploitations","Dans le cadre de vos collaborations, est ce que des problèmes de communication peuvent affecter le fonctionnement de l'entreprise ?",null,null,""]
["Relations familiales"]
["Admission d'un nouveau membre de la famille ","Dans quelle mesure est-il probable que vous introduisiez un nouveau membre de la famille (incluant la belle-famille) au sein de votre entreprise au cours des trois prochaines années?",null,null,{"$f":"IF(C36+D36>0,C36+D36,\"\")","v":""}]
["Rôles et responsabilités peu clairs ","À quelle fréquence des situations problématiques attribuables à une mauvaise définition des rôles et responsabilités entre membres de la famille surviennent-elles au sein de votre entreprise agricole?",null,null,{"$f":"IF(C37+D37>0,C37+D37,\"\")","v":""}]
["Désaccord au sein de la famille","À quelle fréquence des différends familiaux surviennent-ils au sein de votre entreprise agricole?",null,null,{"$f":"IF(C38+D38>0,C38+D38,\"\")","v":""}]
["Perception d'un traitement injuste","À quelle fréquence des employés membres de la famille et des employés non apparentés ont-ils le sentiment d’être traités de manière injuste par rapport à leurs homologues au sein de votre entreprise agricole?",null,null,{"$f":"IF(C39+D39>0,C39+D39,\"\")","v":""}]
["Salaires des membres de la famille","À quelle fréquence des incidents relatifs à la rémunération des membres de la famille surviennent-ils au sein de votre entreprise agricole?",null,null,{"$f":"IF(C40+D40>0,C40+D40,\"\")","v":""}]
["Entrepreneurs et conseillers"]
["Prestataires ou consultants inappropriés","À quelle fréquence engagez-vous des entrepreneurs ou des conseillers dans le cadre de votre entreprise agricole?",null,null,{"$f":"IF(C42+D42>0,C42+D42,\"\")","v":""}]
["Travail médiocre ou insuffisant ","À quelle fréquence des entrepreneurs ou des conseillers fournissent-ils un travail médiocre ou insatisfaisant au sein de votre entreprise agricole?",null,null,{"$f":"IF(C43+D43>0,C43+D43,\"\")","v":""}]
["Conflits et litiges juridiques","À quelle fréquence êtes-vous confronté à des conflits (même mineurs) avec un entrepreneur ou un conseiller?",null,null,{"$f":"IF(C44+D44>0,C44+D44,\"\")","v":""}]

{"sheet":"2.2_Finances","index":13,"n_rows":18,"n_cols":9,"rows_kept":18,"cut":false,"hidden":true,"merged":[[0,0,0,7]]}
["Classement des risques pour les entreprises agricoles"]
["Risque Finances\n(A)",null,"Probabilité du risque   (B) ","Sévérité de l'impact du risque\n(C)","Degré de risque\n(B+C=D)","Prévention du risque\n( E )","Continuer sans changement\n(F)","Comment continuer\n(G)","Commentaire "]
["Thème","Question sur le thème et sa fréquence","Nombre de 1 à 5       Toujours=5 ; Occasionnellement=3 ; Rarement=1","Nombre de 1 à 5\nGrave=5 ; Modéré=3 ; Mineur=1","(fréquence du risque + gravité de l'impact du risque)","Nombre de 1 à 10\nTrès bien préparé=10 ; Assez bien préparé=5 ; Pas préparé=1","OUI ; NON","Pas de nécessité ; soutien nécessaire ; adaptation \n","Points à discuter ; mesures, méthodes, etc. "]
["Gestion de l'argent"]
["Données financières insuffisantes","À quelle fréquence devez-vous prendre des décisions sans avoir toutes les données comptables nécéssaires ?",null,null,{"$f":"IF(C5+D5>0,C5+D5,\"\")","v":""}]
["Manque de compétences financières","À quelle fréquence vous sentez-vous incapable de comprendre les données financières de votre entreprise agricole afin de prendre de bonnes décisions d’affaires?",null,null,""]
["dépense imprévue ","Quelle est la probabilité que vous ayez de grosses dépenses imprévues dans un avenir proche ? Par exemple, en raison d'une charge fiscale élevée ou de réparations coûteuses. ",null,null,""]
["Insolvabilité ","À quelle fréquence n’arrivez-vous pas à effectuer des paiements ou à les effectuer en temps utile ?",null,null,""]
["Difficulté à trouver des capitaux","À quelle fréquence avez-vous de la difficulté à obtenir des emprunts pour votre entreprise agricole?",null,null,""]
["Pertes ","A quelle fréquence votre entreprise subit-elle une modifications des capitaux propres négative ?",null,null,""]
["Planification financière insuffisante","À quelle fréquence estimez-vous que vous ne disposez pas des informations nécessaires pour rencontrer et convaincre des partenaires ?",null,null,""]
["Réduction de la consommation privée","A quelle fréquence réduisez-vous votre consommation privée au profit de votre entreprise ?",null,null,""]
["Produits non rémunérés","Quelle est la fréquence des cas où un client ne peut pas payer la prestation/les produits ?",null,null,""]
["Investissements"]
["Mise à niveau, remplacement ","À quelle fréquence devez-vous renouveller du matériel ou renover des batiments ? ",null,null,{"$f":"IF(C15+D15>0,C15+D15,\"\")","v":""}]
["Achat de nouveaux équipements, machines ou terrains","À quelle fréquence saisissez-vous l’occasion d’acheter de l’équipement, des machines ou des terres agricoles sans en avoir planifié l’achat?",null,null,{"$f":"IF(C16+D16>0,C16+D16,\"\")","v":""}]
["Surinvestissement","Dans quelle mesure est-il probable que vous achetiez des machines, de l’équipement ou des terres agricoles au-delà des besoins de votre entreprise?",null,null,{"$f":"IF(C17+D17>0,C17+D17,\"\")","v":""}]
["Endettement","Est-il fréquent que vous soyez confronté à un surendettement ?",null,null,{"$f":"IF(C18+D18>0,C18+D18,\"\")","v":""}]

{"sheet":"2.3_Märkte","index":14,"n_rows":18,"n_cols":9,"rows_kept":18,"cut":false,"hidden":false,"merged":[[0,0,0,7]]}
["Risiko-Ranking für landwirtschaftliche Unternehmen"]
["Risiko  Märkte\n(A)",null,"Häufigkeit des Risikos\n(B) ","Ausmaß oder Gefährdung des Risikos\n(C)","Grad des Risikos\n(B+C=D)","Bereitschaft\n( E )","Unverändert fortfahren\n(F)","Wie weiterfahren\n(G)","Bemerkung "]
["Thema / Bereich ","Frage zum Thema und dessen Häufigkeit","Zahl von 1 - 5       Immer=5; Gelegentlich=3; Selten=1","Zahl von 1 - 5\nSchwerwiegend=5; Mäßig=3; Geringfügig=1","(Häufigkeit des Risikos + Ausmaß der Risikoexposition)","Zahl von 1-10\nSehr gut vorbereitet=10; Einigermaßen vorbereitet=5; Nicht vorbereitet=1","JA ; NEIN","Keine Notwendigkeit; Unterstützung benötigt; Anpassung ","Diskussionspunkte; Massnahmen, Methoden etc. "]
["Einkauf, Beschaffung"]
["Qualitätsprobleme bei Agrarprodukten","Wie oft kommt es in Ihrem Betrieb zu Zwischenfällen im Zusammenhang mit der Qualität von Agrarprodukten? (Hygiene, Standards…)",null,null,{"$f":"IF(C5+D5>0,C5+D5,\"\")","v":""}]
["Internationaler Markt","Wie stark sind sie dem internationalen Mark ausgesetzt? (Importschutz etc.)",null,null,""]
["Stagnierender oder rückläufiger Umsatz","Wie hoch ist die Wahrscheinlichkeit, dass die Umsätze in den nächsten 3 Jahren stagnieren oder zurückgehen werden?",null,null,""]
["Verstärkter Wettbewerb","Wie hoch ist die Wahrscheinlichkeit, dass sich der zunehmende Wettbewerb in den nächsten 3 Jahren auf Ihren Betrieb auswirken wird?",null,null,""]
["Verkaufs- und Preisschwankungen","Wie hoch ist die Wahrscheinlichkeit, dass sich Verkaufs- und Preisschwankungen in den nächsten 3 Jahren auf Ihren Betrieb auswirken werden?",null,null,""]
["Unzureichender Marketingplan","Wie hoch ist die Wahrscheinlichkeit, dass Sie in den nächsten 3 Jahren keinen Marketingplan für Ihren Betrieb aufstellen oder aktualisieren werden?",null,null,""]
["Absatzmarkt","Wie hoch ist die Wahrscheinlichkeit, dass Sie einen Kunden, einen Absatzmarkt verlieren und Sie bei Abnehmern oder Produkten wenig diversifiziert sind? ",null,null,""]
["Imageverlust eines Produkts","Gibt es Risiken, die mit dem Imageverlust eines Produkts zusammenhängen? ",null,null,""]
["Verpflichtung in einem Label","Wie hoch ist die Wahrscheinlichkeit, dass sie für Ihre Produkte keinen höheren Preis bekommen, weil der Absatz im differenzierten Kanal fehlt?",null,null,""]
["Verkauf, Preise, Handel"]
["Abhängigkeit Beitriebsmittel","Wie stark schätzen Sie die Abhängigkeit von Futtermittel-, Pflanzenschutzmittel-, Energiequellen ein. (Sichere Bezugsquelle)",null,null,{"$f":"IF(C15+D15>0,C15+D15,\"\")","v":""}]
["Abhängigkeit Ausland","Besteht eine akute Abhängigkeit von einem Lieferanten/aus dem Ausland?",null,null,""]
["Energie","Quellen und alternative Quellen, zu denen der Betrieb Zugang hat (Mineralöl, Diesel). Ist es möglich, bei Energieknappheit ohne oder mit weniger Energie auszukommen? ",null,null,""]
["Unregelmäßigkeiten","Wie oft stellen Sie Unregelmäßigkeiten bei der Qualität, der Lieferzeit und dem Preis von Vorleistungen fest?",null,null,""]

{"sheet":"2.3_Marchés","index":15,"n_rows":18,"n_cols":9,"rows_kept":18,"cut":false,"hidden":true,"merged":[[0,0,0,7]]}
["Classement des risques pour les entreprises agricoles"]
["Risque Marchés\n(A)",null,"Probabilité du risque   (B) ","Sévérité de l'impact du risque\n(C)","Degré de risque\n(B+C=D)","Prévention du risque\n( E )","Continuer sans changement\n(F)","Comment continuer\n(G)","Commentaire "]
["Thème","Question sur le thème et sa fréquence","Nombre de 1 à 5       Toujours=5 ; Occasionnellement=3 ; Rarement=1","Nombre de 1 à 5\nGrave=5 ; Modéré=3 ; Mineur=1","(fréquence du risque + gravité de l'impact du risque)","Nombre de 1 à 10\nTrès bien préparé=10 ; Assez bien préparé=5 ; Pas préparé=1","OUI ; NON","Pas de nécessité ; soutien nécessaire ; adaptation \n","Points à discuter ; mesures, méthodes, etc. "]
["Achats, approvisonnement "]
["engagement dans un label","Quelle est la probabilité que vos produits ne bénéficient pas du prix plus élévé par manque de débouché dans une filière différenciée ?",null,null,{"$f":"IF(C5+D5>0,C5+D5,\"\")","v":""}]
["Problèmes de qualité des produits agricoles","À quelle fréquence des incidents reliés à la qualité des denrées agricoles surviennent-ils au sein de votre entreprise agricole?",null,null,""]
["Marché international","Dans quelle mesure vos prestations sont-elles exposées au marché international ? (protection contre les importations, etc.)",null,null,""]
["Chiffre d'affaires stagnant ou en baisse","Dans quelle mesure est-il probable que survienne une stagnation ou une baisse de vos ventes au cours des trois prochaines années?",null,null,""]
["Une concurrence accrue","Dans quelle mesure est-il probable qu’une augmentation de la concurrence affecte votre entreprise au cours des trois prochaines années?",null,null,""]
["Fluctuations des ventes et des prix","Dans quelle mesure est-il probable que la fluctuation des ventes et des prix affecte votre entreprise au cours des trois prochaines années?",null,null,""]
["Plan marketing insuffisant","Dans quelle mesure est-il probable que vous ne formalisiez pas  ou ne mettiez pas à jour un plan marketing pour votre entreprise agricole au cours des trois prochaines années?",null,null,""]
["Marché de distribution","Quelle est la probabilité de perdre un client, un débouché ?",null,null,""]
["Perte d'image d'un produit","Y a-t-il des risques liés à la perte d'image d'un produit ?",null,null,""]
["Ventes, prix et commerce "]
["Qualité et prix des intrants ","À quelle fréquence observez-vous des irrégularités dans la qualité, le délai de livraison et le prix des intrants? ",null,null,{"$f":"IF(C15+D15>0,C15+D15,\"\")","v":""}]
["Dépendance aux moyens de production","Dans quelle mesure estimez-vous être dépendant des sources d'alimentation animale, de produits phytosanitaires, d'énergie. (Source d'approvisionnement sûre)",null,null,""]
["Dépendance de l'étranger","Existe-t-il une dépendance aiguë vis-à-vis d'un fournisseur/d'un pays étranger ?",null,null,""]
["Énergie","Sources et sources alternatives auxquelles l'entreprise a accès (huile minérale, diesel). Est-il possible de se passer d'énergie ou d'en utiliser moins en cas de pénurie d'énergie ? ",null,null,""]

{"sheet":"2.4_Management","index":16,"n_rows":35,"n_cols":9,"rows_kept":35,"cut":false,"hidden":false,"merged":[[0,0,0,7]]}
["Risiko-Ranking für landwirtschaftliche Unternehmen"]
["Risiko  Management\n(A)",null,"Häufigkeit des Risikos\n(B) ","Ausmaß oder Gefährdung des Risikos\n(C)","Grad des Risikos\n(B+C=D)","Bereitschaft\n( E )","Unverändert fortfahren\n(F)","Wie weiterfahren\n(G)","Bemerkung "]
["Thema / Bereich ","Frage zum Thema und dessen Häufigkeit","Zahl von 1 - 5       Immer=5; Gelegentlich=3; Selten=1","Zahl von 1 - 5\nSchwerwiegend=5; Mäßig=3; Geringfügig=1","(Häufigkeit des Risikos + Ausmaß der Risikoexposition)","Zahl von 1-10\nSehr gut vorbereitet=10; Einigermaßen vorbereitet=5; Nicht vorbereitet=1","JA ; NEIN","Keine Notwendigkeit; Unterstützung benötigt; Anpassung ","Diskussionspunkte; Massnahmen, Methoden etc. "]
["Unternehmensstrategie und -entwicklung"]
["Unklare Ziele","Haben Sie Schwierigkeiten, Ihre Unternehmensstrategie oder -vision klar auszudrücken oder zu kommunizieren?",null,null,{"$f":"IF(C5+D5>0,C5+D5,\"\")","v":""}]
["Unzureichende landwirtschaftliche Leistungsfähigkeit","Wie hoch ist die Wahrscheinlichkeit, dass Sie die Leistungsfähigkeit Ihres Betriebs erhöhen oder verändern müssen, um Ihre Geschäftsziele zu erreichen?",null,null,""]
["Unzureichende Betriebsstruktur und/oder Unternehmensführung","Wie hoch ist die Wahrscheinlichkeit, dass sich Ihre Betriebsstruktur ändern muss, um Ihre Geschäftsentwicklungsziele besser zu erreichen?",null,null,""]
["Unzureichende unternehmerische Fähigkeiten und Methoden","Haben Sie das Gefühl, nicht über ausreichende unternehmerische Fähigkeiten zu verfügen, um Ihre Betriebsstrategie zu planen, entwickeln und umzusetzen? ",null,null,""]
["Unzureichende strategische Planung","Wie hoch ist die Wahrscheinlichkeit, dass Sie den strategischen Plan für Ihren Betrieb nicht umsetzen und/oder aktualisieren werden?",null,null,""]
["Unzureichende Leistungsüberwachung und -bewertung","Wie hoch ist die Wahrscheinlichkeit, dass Sie Benchmarking bei den Leistungen im Betrieb nicht oder zu selten durchführen?",null,null,""]
["Externe Faktoren, die die Zielerreichung verhindern","Wie oft werden Sie durch äußere Faktoren an der Erreichung Ihrer Ziele gehindert oder aufgehalten?",null,null,""]
["Wissensmanagement und Ausbildung","Wie oft haben Sie das Gefühl, dass Ihre Ausbildung nicht mehr den Ansprüchen der heutigen Landwirtschaft entspricht?",null,null,""]
["Versicherungsschutz und Vorsorge ","Haben Sie das Gefühl, dass Sie nicht ausreichend versichert sind bzw. abgesichert sind?",null,null,""]
["Technologie und Innovation"]
["Unzureichende oder übermäßige Informationen","Wie oft haben Sie das Gefühl, dass die Informationen über Innovationen für Ihre Bedürfnisse nicht ausreichen?",null,null,{"$f":"IF(C15+D15>0,C15+D15,\"\")","v":""}]
["Innovationsplanung","Wie oft erwägen Sie die Einführung eines neuen Verfahrens oder einer neuen Technologie in Ihrem Betrieb?",null,null,{"$f":"IF(C16+D16>0,C16+D16,\"\")","v":""}]
["Einführung","Wie hoch ist die Wahrscheinlichkeit, dass Sie innerhalb der nächsten 3 Jahre eine neue Technologie, einen neuen Prozess oder eine neue Methode in Ihrem Betrieb einführen werden?",null,null,{"$f":"IF(C17+D17>0,C17+D17,\"\")","v":""}]
["Hofübergabe"]
["Keine klare Nachfolger*in bestimmt","Wie groß ist die Wahrscheinlichkeit, dass, obwohl die Notwendigkeit eines Betriebsübergangs festgestellt wurde, kein(e) Nachfolger rechtzeitig gefunden wird, um den Übergangsprozess einzuleiten?",null,null,{"$f":"IF(C19+D19>0,C19+D19,\"\")","v":""}]
["Unvorbereitete Nachfolger*in","Wie groß ist die Wahrscheinlichkeit, dass der Übergang stattfindet, bevor der/die Nachfolger*in angemessen geschult/vorbereitet sind, um die Verantwortung zu übernehmen?",null,null,{"$f":"IF(C20+D20>0,C20+D20,\"\")","v":""}]
["Mangelhafte Kommunikation","Wie hoch ist die Wahrscheinlichkeit, dass es während des Übergangsprozesses zu einem Zwischenfall im Zusammenhang mit mangelhafter Kommunikation kommt?",null,null,{"$f":"IF(C21+D21>0,C21+D21,\"\")","v":""}]
["Finanzlage für den Übergang nicht tragfähig","Wie hoch ist die Wahrscheinlichkeit, dass die finanzielle Situation des Betriebs die Übergangsziele nicht erreicht?",null,null,{"$f":"IF(C22+D22>0,C22+D22,\"\")","v":""}]
["Unzureichende Übergangsplanung","Wie hoch ist die Wahrscheinlichkeit, dass der Betriebs innerhalb der nächsten 10 Jahre übergeben werden muss?",null,null,{"$f":"IF(C23+D23>0,C23+D23,\"\")","v":""}]
["Konflikt Weitergabe ","Sehen Sie ein Szenario, dass es zu Konflikten führen kann innerhalb der Familie, bezüglich der (geplanten) Weitergabe?",null,null,""]
["Notfallordner","Im Falle eines Todes oder Verlust der Handlungsfähigkeit, wie hoch ist die Wahrscheinlichkeit, dass alle wichtigen Informationen für die Unternehmensführung verfügbar sind?",null,null,""]
["Betrieb"]
["Probleme mit der Produktionsqualität","Wie oft haben bekommen Sie Beschwerden oder negatives Feedback zur Qualität Ihrer Produkte von Käufern? ",null,null,{"$f":"IF(C27+D27>0,C27+D27,\"\")","v":""}]
["Unzureichende Prozesse und Verfahren","Wie häufig kommt es in Ihrem Betrieb zu Engpässen oder Störungen im Arbeitsablauf (Maschinenausfälle, vorübergehender Arbeitskräftemangel, verspätete Lieferungen usw.)?",null,null,""]
["Unzureichende Informationen","Wie oft stehen Sie vor betrieblichen Entscheidungen, die Informationen erfordern, die Ihnen nicht zur Verfügung stehen oder die Sie für unzureichend halten?",null,null,""]
["Probleme mit der Produktionsmenge","Wie oft haben Sie Probleme mit der Menge, d. h. mit der Produktion von zu viel oder zu wenig Waren und Dienstleistungen in Ihrem Betrieb?",null,null,""]
["Schlechte Abfallentsorgung","Wie oft haben Sie Probleme mit der Abfallentsorgung in Ihrem Betrieb?",null,null,""]
["Unzureichende Betriebs- und Produktionsplanung","Wie hoch ist die Wahrscheinlichkeit, dass Sie Ihren Betriebs- und Produktionsplan für Ihren Betrieb in den nächsten 3 Jahren erstellen, aktualisieren oder neu formulieren müssen?",null,null,""]
["Zusammenarbeit mit benachbarten Betrieben","Wie oft haben Sie Probleme/Konflikte mit benachbarten Betrieben?",null,null,""]
["Pachtverträge ","Wie hoch ist die Wahrscheinlichkeit, dass Sie Schwierigkeiten bei der Verlängerung von Pachtverträgen bekommen?",null,null,""]
["IKT-Systeme (Informationssysteme)","Nutzen Sie Systeme für die Erheben, Speichern, Übertragen und Weiterverarbeiten von Daten und Informationen für den Betrieb?",null,null,""]

{"sheet":"2.4_Gestion","index":17,"n_rows":35,"n_cols":9,"rows_kept":35,"cut":false,"hidden":true,"merged":[[0,0,0,7]]}
["Classement des risques pour les entreprises agricoles"]
["Risque Gestion\n(A)",null,"Probabilité du risque   (B) ","Sévérité de l'impact du risque\n(C)","Degré de risque\n(B+C=D)","Prévention du risque\n( E )","Continuer sans changement\n(F)","Comment continuer\n(G)","Commentaire "]
["Thème","Question sur le thème et sa fréquence","Nombre de 1 à 5       Toujours=5 ; Occasionnellement=3 ; Rarement=1","Nombre de 1 à 5\nGrave=5 ; Modéré=3 ; Mineur=1","(fréquence du risque + gravité de l'impact du risque)","Nombre de 1 à 10\nTrès bien préparé=10 ; Assez bien préparé=5 ; Pas préparé=1","OUI ; NON","Pas de nécessité ; soutien nécessaire ; adaptation \n","Points à discuter ; mesures, méthodes, etc. "]
["Stratégie et développement de l'entreprise"]
["Des objectifs peu clairs","Avez-vous des difficultés à exprimer ou communiquer clairement votre stratégie ou votre vision d'entreprise ?",null,null,{"$f":"IF(C5+D5>0,C5+D5,\"\")","v":""}]
["Capacité de production insuffisante","Dans quelle mesure est-il probable que vous ayez à accroître ou à modifier la capacité de votre entreprise agricole pour atteindre vos objectifs d’affaires?",null,null,""]
["Structure et/ou gestion d'entreprise insuffisante","Dans quelle mesure est-il probable que la structure de votre entreprise agricole doive changer afin de mieux répondre à vos objectifs de développement?",null,null,""]
["Compétences et méthodes entrepreneuriales insuffisantes","Pensez vous ne pas avoir suffisamment de compétences pour élaborer des stratégies, développer et gérer votre entreprise agricole? ",null,null,""]
["Planification stratégique insuffisante","Est-il probable que vous ne formalisiez pas ou ne mettiez pas à jour vos lignes directrices et buts stratégiques  ?",null,null,""]
["Suivi et évaluation insuffisants des performances","Quelle est la probabilité que vous ne formalisiez pas vos indicateurs d’évaluation de la performance?",null,null,""]
["Facteurs externes empêchant la réalisation des objectifs","À quelle fréquence les facteurs externes nuisent-ils à l’atteinte de vos objectifs ou vous empêchent-ils de les atteindre?",null,null,""]
["Gestion des connaissances et éducation","A quelle fréquence avez-vous le sentiment que votre éducation ne correspond plus aux exigences de l'agriculture d'aujourd'hui ?",null,null,""]
["Couverture d'assurance et prévoyance","Avez-vous l'impression de ne pas être suffisamment assuré(e) ?",null,null,""]
["Technologie et innovation"]
["Informations insuffisantes ou excessives","À quelle fréquence estimez-vous que les renseignements concernant les innovations sont inadéquats en fonction de vos besoins?",null,null,{"$f":"IF(C15+D15>0,C15+D15,\"\")","v":""}]
["Planification de l'innovation","À quelle fréquence envisagez-vous l’adoption d’un nouveau processus ou d’une nouvelle technologie au sein de votre entreprise agricole?",null,null,{"$f":"IF(C16+D16>0,C16+D16,\"\")","v":""}]
["Introduction","Dans quelle mesure est-il probable que vous mettiez en œuvre une nouvelle technologie, un nouveau processus ou une nouvelle méthode au sein de votre entreprise au cours des trois prochaines années?",null,null,{"$f":"IF(C17+D17>0,C17+D17,\"\")","v":""}]
["Planification de la transmission"]
["Pas de successeur clairement désigné","Dans quelle mesure est-il probable que, malgré le fait que le besoin d’un transfert d'exploitation ait été établi, aucun successeur ne soit désigné à temps pour amorcer la remise de l’exploitation?",null,null,{"$f":"IF(C19+D19>0,C19+D19,\"\")","v":""}]
["Un successeur non préparé","Dans quelle mesure est-il probable que planification le transmission ait lieu avant que le ou les successeurs soient adéquatement formés ou préparés pour assumer les responsabilités inhérentes à l’entreprise?",null,null,{"$f":"IF(C20+D20>0,C20+D20,\"\")","v":""}]
["Manque de communication","Dans quelle mesure est-il probable qu’un incident découlant d’une mauvaise communication se produise pendant le processus de transition?",null,null,{"$f":"IF(C21+D21>0,C21+D21,\"\")","v":""}]
["Situation financière non viable pour la transition","Dans quelle mesure est-il probable que la situation financière de l’entreprise agricole ne permette pas la viabilité pour le reprenneur ?",null,null,{"$f":"IF(C22+D22>0,C22+D22,\"\")","v":""}]
["Planification insuffisante de la transition","Dans quelle mesure est-il probable que la remise de votre entreprise agricole ait lieu au cours des 10 prochaines années?",null,null,{"$f":"IF(C23+D23>0,C23+D23,\"\")","v":""}]
["Conflit lors de la transmission de la ferme","Voyez-vous un scénario qui pourrait conduire à des conflits, au sein de la famille, concernant la transmission (prévue) ?",null,null,""]
["Gestion des informations ","En cas de décès ou de perte de conscience, quelle est la probabilité que les intormations importantes pour la gestion d'entreprise soient indisponibles ?",null,null,""]
["Entreprise"]
["Collaborations ","Dans quelle mesure le mauvais fonctionnement d'une collaboration peut affecter la bonne marche de votre entreprise (ex matériel commun cassé, mauvaise entente...) ",null,null,{"$f":"IF(C27+D27>0,C27+D27,\"\")","v":""}]
["Processus et procédures inadéquats","À quelle fréquence faites-vous face à des perturbations dans le flux de travail (bris de machines, pénuries temporaires de main-d’œuvre, livraisons tardives, etc.) au sein de votre entreprise agricole?",null,null,""]
["Informations insuffisantes","À quelle fréquence devez-vous faire face à des décisions d’affaires qui nécessitent des informations techniques qui vous manquent ?",null,null,""]
["Problèmes liés à la quantité de production","À quelle fréquence rencontrez-vous des problèmes liés au volume de production de biens et de services (qu’il soit faible ou excessif) au sein de votre entreprise agricole?",null,null,""]
["Mauvaise gestion des déchets","À quelle fréquence rencontrez-vous des problèmes liés à la gestion des déchets sur votre entreprise agricole?",null,null,""]
["Planification insuffisante de l'exploitation et de la production","Quelle est la probabilité que vous ayez besoin d'améliorer votre planification de production au cours des trois prochaines années?",null,null,""]
["Coopération avec les entreprises voisines","A quelle fréquence avez-vous des problèmes/conflits avec des entreprises voisines ?",null,null,""]
["Contrats de location/fermage","Quelles est la probabilité que vous ayiez des difficultés concernant les contrats de fermage ?  ",null,null,""]
["Systèmes TIC (systèmes d'information)","Utilisez-vous des systèmes pour la collecte, le stockage, la transmission et le traitement ultérieur de données et d'informations pour l'entreprise ?",null,null,""]

{"sheet":"2.5_Betriebsumgebung","index":18,"n_rows":14,"n_cols":9,"rows_kept":14,"cut":false,"hidden":false,"merged":[[0,0,0,7]]}
["Risiko-Ranking für landwirtschaftliche Unternehmen"]
["Risiko  Geschäftsfeld\n(A)",null,"Häufigkeit des Risikos\n(B) ","Ausmaß oder Gefährdung des Risikos\n(C)","Grad des Risikos\n(B+C=D)","Bereitschaft\n( E )","Unverändert fortfahren\n(F)","Wie weiterfahren\n(G)","Bemerkung "]
["Thema / Bereich ","Frage zum Thema und dessen Häufigkeit","Zahl von 1 - 5       Immer=5; Gelegentlich=3; Selten=1","Zahl von 1 - 5\nSchwerwiegend=5; Mäßig=3; Geringfügig=1","(Häufigkeit des Risikos + Ausmaß der Risikoexposition)","Zahl von 1-10\nSehr gut vorbereitet=10; Einigermaßen vorbereitet=5; Nicht vorbereitet=1","JA ; NEIN","Keine Notwendigkeit; Unterstützung benötigt; Anpassung ","Diskussionspunkte; Massnahmen, Methoden etc. "]
["Öffentliches Vertrauen und Anwaltschaft für Verbraucher"]
["Entfremdung ","Wie oft bemerken Sie Probleme, die durch eine Entfremdung der Gesellschaft zur Landwirtschaft entstehen?",null,null,{"$f":"IF(C5+D5>0,C5+D5,\"\")","v":""}]
["Störung","Wie häufig werden Ihre landwirtschaftlichen Tätigkeiten von Nachbarn oder der umliegenden Gesellschaft als störend empfunden?",null,null,""]
["Konflikte mit Nachbarn","Wie oft kommt es zu Meinungsverschiedenheiten oder Konflikten mit Nachbarn im Zusammenhang mit Ihrer landwirtschaftlichen Tätigkeit?",null,null,""]
["Unzureichende vertrauensbildende Maßnahmen","Wie wahrscheinlich ist es, dass Fragen des öffentlichen Vertrauens Ihre Tätigkeit in den nächsten 3 Jahren beeinflussen werden?",null,null,""]
["Diebstahl / Beschädigung","Wie oft haben Sie Probleme mit Diebstahl und Beschädigungen auf Ihrem Betrieb?",null,null,""]
["Erscheinungsbild des Betriebs","Wie Wahrscheinlich ist es, dass das Erscheinungsbild Ihres Betriebs Ihr Image verschlechtert?",null,null,""]
["Politik und Vorschriften"]
["Veränderungen in der Landespolitik","Wie hoch ist die Wahrscheinlichkeit, dass es in den nächsten 3 Jahren zu einem Wechsel in der Landespolitik kommt, der sich direkt auf Ihre Tätigkeit auswirkt?",null,null,{"$f":"IF(C12+D12>0,C12+D12,\"\")","v":""}]
[" Vorschriften und Politik","Wie hoch ist die Wahrscheinlichkeit, dass sich Änderungen der nationalen und/oder internationalen Vorschriften und Politiken in den nächsten drei Jahren auf Ihr Unternehmen auswirken werden?",null,null,{"$f":"IF(C13+D13>0,C13+D13,\"\")","v":""}]
["Ereignisse","Wie hoch ist die Wahrscheinlichkeit, dass Ereignisse, die öffentliche Aufmerksamkeit erregen oder die öffentliche Wahrnehmung beeinflussen, Ihre Tätigkeit in den nächsten 3 Jahren beeinträchtigen werden?",null,null,{"$f":"IF(C14+D14>0,C14+D14,\"\")","v":""}]

{"sheet":"2.5_Environnement commercial","index":19,"n_rows":14,"n_cols":9,"rows_kept":14,"cut":false,"hidden":true,"merged":[[0,0,0,7]]}
["Classement des risques pour les entreprises agricoles"]
["Risque dans l'environnement commercial\n(A)",null,"Probabilité du risque   (B) ","Sévérité de l'impact du risque\n(C)","Degré de risque\n(B+C=D)","Prévention du risque\n( E )","Continuer sans changement\n(F)","Comment continuer\n(G)","Commentaire "]
["Thème","Question sur le thème et sa fréquence","Nombre de 1 à 5       Toujours=5 ; Occasionnellement=3 ; Rarement=1","Nombre de 1 à 5\nGrave=5 ; Modéré=3 ; Mineur=1","(fréquence du risque + gravité de l'impact du risque)","Nombre de 1 à 10\nTrès bien préparé=10 ; Assez bien préparé=5 ; Pas préparé=1","OUI ; NON","Pas de nécessité ; soutien nécessaire ; adaptation \n","Points à discuter ; mesures, méthodes, etc. "]
["Confiance du public et défense des consommateurs"]
["Eloignement de la communauté","À quelle fréquence remarquez-vous des problèmes qui découlent d’un éloignement avec vos concitoyens ? Avec la société ? ",null,null,{"$f":"IF(C5+D5>0,C5+D5,\"\")","v":""}]
["Dérangement","À quelle fréquence vos activités agricoles sont perçues comme une source d’irritation par les voisins ou la collectivité environnante?",null,null,""]
["Conflits avec les voisins","À quelle fréquence des désaccords ou des conflits avec les voisins surviennent-ils en ce qui concerne vos activités agricoles?",null,null,""]
["Mesures de confiance insuffisantes","Quelle est la probabilité que les problèmes liés à la confiance du public influent sur votre entreprise agricole au cours des trois prochaines années?",null,null,""]
["Vol et dommages","A quelle fréquence avez-vous des problèmes de vol et de détérioration sur votre ferme ?",null,null,""]
["Environnement de l'exploitation ","Quelle est la probabilité que les abords de votre ferme nuisent à l'image de votre exploitation ? ",null,null,""]
["Politique et réglementation"]
["Changements dans la gouvernance politique","Dans quelle mesure est-il probable que vos activités soient directement affectées par un changement d'orientation politique au cours des trois prochaines années?",null,null,{"$f":"IF(C12+D12>0,C12+D12,\"\")","v":""}]
[" Réglementation et politique","Quelle est la probabilité qu’un changement dans les politiques et règlements nationaux ou internationaux ait une incidence sur votre entreprise au cours des trois prochaines années?",null,null,{"$f":"IF(C13+D13>0,C13+D13,\"\")","v":""}]
["Événements","Quelles est la probabilité que des événements qui affectent la perception du public aient une incidence sur votre entreprise au cours des trois prochaines années?",null,null,{"$f":"IF(C14+D14>0,C14+D14,\"\")","v":""}]

{"sheet":"2.6_Produktion","index":20,"n_rows":40,"n_cols":9,"rows_kept":40,"cut":false,"hidden":false,"merged":[[0,0,0,7]]}
["Risiko-Ranking für landwirtschaftliche Unternehmen"]
["Risiko  Produktion\n(A)",null,"Häufigkeit des Risikos\n(B) ","Ausmaß oder Gefährdung des Risikos\n(C)","Grad des Risikos\n(B+C=D)","Bereitschaft\n( E )","Unverändert fortfahren\n(F)","Wie weiterfahren\n(G)","Bemerkung "]
["Thema / Bereich ","Frage zum Thema und dessen Häufigkeit","Zahl von 1 - 5       Immer=5; Gelegentlich=3; Selten=1","Zahl von 1 - 5\nSchwerwiegend=5; Mäßig=3; Geringfügig=1","(Häufigkeit des Risikos + Ausmaß der Risikoexposition)","Zahl von 1-10\nSehr gut vorbereitet=10; Einigermaßen vorbereitet=5; Nicht vorbereitet=1","JA ; NEIN","Keine Notwendigkeit; Unterstützung benötigt; Anpassung ","Diskussionspunkte; Massnahmen, Methoden etc. "]
["Umwelt und Klima"]
["Dürre","Wie häufig wirkt sich Trockenheit auf eine oder mehrere Kulturen in Ihrer Fruchtfolge ertragsmindernd wirken?",null,null,{"$f":"IF(C5+D5>0,C5+D5,\"\")","v":""}]
["Überschwemmung","Wie oft wirkt sich zu viel Wasser auf eine oder mehrere Kulturen in Ihrer Fruchtfolge ertragsmindernd aus?",null,null,""]
["Extreme Hitzebedingungen","Wie häufig wirken sich Hitzewellen auf eine oder mehrere Kulturen in Ihrer Fruchtfolge ertragsmindernd aus?",null,null,""]
["Frühzeitiger Frost","Wie oft werden eine oder mehrere Kulturen in Ihrer Fruchtfolge von Frühfrost beeinträchtigt?",null,null,""]
["Hagel, Sturm und Starkregen","Wie häufig treten in Ihrer Region Hagel, Sturm und Starkregen auf?",null,null,""]
["Neue Krankheiten, Schädlinge, invasive Arten und Unkräuter","Wie häufig treten in Ihrer Region neue Krankheiten, Schädlinge, Unkräuter und invasive Arten auf?",null,null,""]
["Nukleares Risiko","Liegt der Betrieb in der 70-km-Zone um ein Kernkraftwerk? ",null,null,""]
["Gesundheit und Wohlergehen von Tieren"]
["Antimikrobielle Resistenz","Wie hoch ist die Wahrscheinlichkeit, dass die Wirksamkeit von Behandlungen mit Antibiotika in Ihrem Betrieb in den nächsten 3 Jahren abnehmen wird?",null,null,{"$f":"IF(C13+D13>0,C13+D13,\"\")","v":""}]
["Krankheit und Verletzung","Wie oft beobachten Sie oder Ihre Mitarbeitenden kranke oder verletzte Tiere in Ihrem Betrieb?",null,null,{"$f":"IF(C14+D14>0,C14+D14,\"\")","v":""}]
["Ausbrüche von Seuchen","Wie hoch ist die Wahrscheinlichkeit, dass in Ihrem Betrieb in den nächsten 3 Jahren ein Ausbruch einer bekannten oder neuen Tierseuche auftritt?",null,null,{"$f":"IF(C15+D15>0,C15+D15,\"\")","v":""}]
["Erwartungen an den Tierschutz","Wie hoch ist die Wahrscheinlichkeit, dass sich veränderte Standards und Erwartungen in Bezug auf den Tierschutz in den nächsten 3 Jahren auf Ihren Betrieb auswirken werden?",null,null,{"$f":"IF(C16+D16>0,C16+D16,\"\")","v":""}]
["Nährstoffmanagement"]
["Nichteinhaltung der Vorschriften zur Nährstoffbewirtschaftung","Wie oft kommt es in Ihrem Betrieb zu Zwischenfällen im Zusammenhang mit der Nichteinhaltung von Vorschriften zu organischen oder mineralischen Düngemitteln?",null,null,{"$f":"IF(C18+D18>0,C18+D18,\"\")","v":""}]
["Abschwemmung und Auswaschung von Nährstoffen","Wie häufig kommt es in Ihrem Betrieb zu Nährstoffauswaschungen und -verlusten?",null,null,{"$f":"IF(C19+D19>0,C19+D19,\"\")","v":""}]
["Unzureichende Lagerung von Nährstoffen","Wie oft besteht bei der Lagerung von Nährstoffen (organisch oder mineralisch) die Gefahr einer Boden- oder Wasserschmutzung?",null,null,{"$f":"IF(C20+D20>0,C20+D20,\"\")","v":""}]
["Unzureichende Ausbildung im Umgang mit Nährstoffen","Wie oft kommt es in Ihrem Betrieb zu Zwischenfällen im Zusammenhang mit dem Umgang mit Nährstoffen, die auf eine unzureichende Ausbildung zurückzuführen sind?",null,null,{"$f":"IF(C21+D21>0,C21+D21,\"\")","v":""}]
["Unzureichende Planung der Nährstoffbewirtschaftung","Wie hoch ist die Wahrscheinlichkeit, dass Sie in den nächsten  drei Jahren Probleme bekommen eine ausgeglichene Suissebilanz zu erstellen?",null,null,{"$f":"IF(C22+D22>0,C22+D22,\"\")","v":""}]
["Pflanzenschutz"]
["Nichteinhaltung von Vorschriften","Wie oft kommt es in Ihrem Betrieb zu Vorfällen im Zusammenhang mit der Nichteinhaltung von Schädlingsbekämpfungsvorschriften?",null,null,{"$f":"IF(C24+D24>0,C24+D24,\"\")","v":""}]
["Schwierigkeiten bei der Bekämpfung von Schädlingen und Krankheiten","Wie oft haben Sie Schwierigkeiten bei der Bekämpfung von Schädlingen und Krankheiten in Ihrem Betrieb?",null,null,{"$f":"IF(C25+D25>0,C25+D25,\"\")","v":""}]
["Alternative Bekämpfungsmethoden","Wie hoch ist die Wahrscheinlichkeit, dass Sie in den nächsten drei Jahren neue oder alternative Pestizide oder Schädlingsbekämpfungsprodukte und -methoden einsetzen werden? Auch aufgrund Wirkungsverlust oder Verbot der angewandten Methoden?",null,null,{"$f":"IF(C26+D26>0,C26+D26,\"\")","v":""}]
["Auswaschung von Pestiziden","Wie häufig kommt es in Ihrem Betrieb zu Pestizidabschwemmungen oder -auswaschungen (auch in geringen Mengen)?",null,null,{"$f":"IF(C27+D27>0,C27+D27,\"\")","v":""}]
["Pestizidabdrift","Wie häufig kommt es in Ihrem Betrieb zu Pestizidabdrift?",null,null,""]
["Unsachgemäße Lagerung und Entsorgung","Wie häufig treten in Ihrem Betrieb Probleme im Zusammenhang mit der Lagerung und Entsorgung von Pestiziden auf?",null,null,{"$f":"IF(C29+D29>0,C29+D29,\"\")","v":""}]
["Unzureichende Ausbildung im Umgang mit Pestiziden","Wie oft kommt es in Ihrem Betrieb zu (auch kleineren) Zwischenfällen, die mit einer unzureichenden Ausbildung im Umgang mit Pestiziden zusammenhängen?",null,null,{"$f":"IF(C30+D30>0,C30+D30,\"\")","v":""}]
["Boden-, Wasser- und Biodiversitätsmanagement"]
["Wasserknappheit","Wie oft haben Sie in Ihrem Betrieb Probleme mit Wasserknappheit?",null,null,{"$f":"IF(C32+D32>0,C32+D32,\"\")","v":""}]
["Bodenerosion","Wie oft beobachten Sie die Folgen von Bodenerosion in Ihrem Betrieb?",null,null,{"$f":"IF(C33+D33>0,C33+D33,\"\")","v":""}]
["Verdichtung des Bodens","Wie oft beobachten Sie Bodenverdichtungungen auf Ihrem Betrieb?",null,null,{"$f":"IF(C34+D34>0,C34+D34,\"\")","v":""}]
["Abnehmende Bodengesundheit","Wie oft entdecken Sie in Ihrem Betrieb Bereiche mit schlechter Bodengesundheit?",null,null,""]
["Wasserverschmutzung","Wie oft haben Sie Probleme oder Bedenken im Zusammenhang mit der Wasserverschmutzung auf Ihrem Betrieb?",null,null,""]
["Drainagen","Wie oft haben Sie Probleme mit der Entwässerung in Ihrem Betrieb?",null,null,""]
["Artenvielfalt","Wie hoch ist die Wahrscheinlichkeit, dass Ihre landwirtschaftlichen Praktiken zum Rückgang von gefährdeten oder bedrohten Arten oder der biologischen Vielfalt in Ihrem Gebiet beitragen?",null,null,""]
["Invasive Arten","Wie häufig treten in Ihrer Gemeinde oder Ihrem Gebiet Probleme mit invasiven Arten auf?",null,null,{"$f":"IF(C39+D39>0,C39+D39,\"\")","v":""}]
["Externe Verschmutzung ","Wie wahrscheinlich ist eine Verschmutzung durch einen externen Faktor (Risikoindustrie)?",null,null,{"$f":"IF(C40+D40>0,C40+D40,\"\")","v":""}]

{"sheet":"2.6_Production","index":21,"n_rows":40,"n_cols":9,"rows_kept":40,"cut":false,"hidden":true,"merged":[[0,0,0,7]]}
["Classement des risques pour les entreprises agricoles"]
["Risque dans la production\n(A)",null,"Probabilité du risque   (B) ","Sévérité de l'impact du risque\n(C)","Degré de risque\n(B+C=D)","Prévention du risque\n( E )","Continuer sans changement\n(F)","Comment continuer\n(G)","Commentaire "]
["Thème","Question sur le thème et sa fréquence","Nombre de 1 à 5       Toujours=5 ; Occasionnellement=3 ; Rarement=1","Nombre de 1 à 5\nGrave=5 ; Modéré=3 ; Mineur=1","(fréquence du risque + gravité de l'impact du risque)","Nombre de 1 à 10\nTrès bien préparé=10 ; Assez bien préparé=5 ; Pas préparé=1","OUI ; NON","Pas de nécessité ; soutien nécessaire ; adaptation \n","Points à discuter ; mesures, méthodes, etc. "]
["Environnement et climat"]
["Sécheresse","À quelle fréquence constatez-vous des épisodes de sécheresse susceptibles d'affecter les rendements d'une ou plusieurs cultures dans l'assolement?",null,null,{"$f":"IF(C5+D5>0,C5+D5,\"\")","v":""}]
["Inondation","À quelle fréquence l’excès d’eau affecte-t-il le niveau de rendement d'une ou plusieurs cultures dans votre assolement ?",null,null,""]
["Conditions de chaleur extrême","À quelle fréquence constatez-vous des vagues de chaleur susceptibles d'affecter les rendements d'une ou plusieurs cultures dans l'assolement?",null,null,""]
["Gel précoce","À quelle fréquence les gelées précoces affectent-t-elle vos cultures?",null,null,""]
["Grêle, vents violents et tempêtes ","À quelle fréquence votre région est-elle frappée par des épisodes de grêle, tempête et fortes pluies ?",null,null,""]
["Nouvelles maladies, ravageurs, espèces envahissantes et mauvaises herbes","À quelle fréquence de nouveaux organismes nuisibles, maladies, espèces envahissantes et mauvaises herbes surviennent-ils dans votre région?",null,null,""]
["Risque nucléaire","L'entreprise se trouve-t-elle dans la zone de 70 km autour d'une centrale nucléaire ? ",null,null,""]
["Santé et bien-être des animaux"]
["Résistance antimicrobienne aux antibiotiques","Quelle est la probabilité que votre entreprise agricole connaisse une baisse de l’efficacité de ses traitements et antibiotiques au cours des 3 prochaines années?",null,null,{"$f":"IF(C13+D13>0,C13+D13,\"\")","v":""}]
["Maladies et blessures","À quelle fréquence vous ou votre personnel observez des animaux malades ou blessés sur votre entreprise?",null,null,{"$f":"IF(C14+D14>0,C14+D14,\"\")","v":""}]
["Épidémies","Quelle est la probabilité que votre entreprise agricole soit victime d'une épidémie au cours des 3 prochaines années?",null,null,{"$f":"IF(C15+D15>0,C15+D15,\"\")","v":""}]
["Les attentes en matière de protection des animaux","Quelle est la probabilité que les normes et les attentes fluctuantes en matière de bien-être des animaux affectent votre entreprise au cours des trois prochaines années?",null,null,{"$f":"IF(C16+D16>0,C16+D16,\"\")","v":""}]
["Gestion des nutriments"]
["Non-respect des règles de gestion des nutriments","À quelle fréquence des incidents découlant de la non-conformité aux règlements en matière de gestion des matières fertilisantes se produisent-ils au sein de votre entreprise agricole?",null,null,{"$f":"IF(C18+D18>0,C18+D18,\"\")","v":""}]
["Ruissellement et lessivage des nutriments","À quelle fréquence votre entreprise agricole fait-elle face à des incidents associés au ruissellement et au lessivage des matières fertilisantes?",null,null,{"$f":"IF(C19+D19>0,C19+D19,\"\")","v":""}]
["Stockage insuffisant des nutriments engrais de ferme","À quelle fréquence l’entreposage des matières fertilisantes présente-il un risque de pollution des sols ou de l’eau?",null,null,{"$f":"IF(C20+D20>0,C20+D20,\"\")","v":""}]
["Formation insuffisante à la gestion des nutriments","À quelle fréquence des incidents liés à la manipulation des matières fertilisantes en raison d’une formation inadéquate se produisent-ils au sein de votre entreprise agricole?",null,null,{"$f":"IF(C21+D21>0,C21+D21,\"\")","v":""}]
["Planification insuffisante de la gestion des nutriments","Quelle est la probabilité que vous ne formalisiez pas et n’actualisiez pas régulièrement votre plan de gestion des matières fertilisantes plan de fumure ? au cours des trois prochaines années?\nQuelle est la probabilité que vous rencontriez des problèmes pour remplir votre Suisse-Bilanz ?",null,null,{"$f":"IF(C22+D22>0,C22+D22,\"\")","v":""}]
["Protection des plantes"]
["Non-respect de la réglementation","À quelle fréquence des incidents liés au non-respect de la réglementation en matière de gestion des organismes nuisibles des cultures se produisent-ils sur votre entreprise agricole?",null,null,{"$f":"IF(C24+D24>0,C24+D24,\"\")","v":""}]
["Difficultés dans la lutte contre les parasites et les maladies","À quelle fréquence éprouvez-vous des difficultés à contrôler les organismes nuisibles des cultures et les maladies au sein de votre entreprise agricole?",null,null,{"$f":"IF(C25+D25>0,C25+D25,\"\")","v":""}]
["Changement de méthodes de lutte","Quelle est la probabilité que vous utilisiez un nouveau pesticide ou une nouvelle méthode de gestion des organismes nuisibles au cours des trois prochaines années ? (Y compris en raison d'une perte d'efficacité ou d'une interdiction des méthodes utilisées)",null,null,{"$f":"IF(C26+D26>0,C26+D26,\"\")","v":""}]
["Lessivage des pesticides","À quelle fréquence le ruissellement ou le lessivage des pesticides (même en petite quantité) se produit-il au sein de votre entreprise agricole?",null,null,{"$f":"IF(C27+D27>0,C27+D27,\"\")","v":""}]
["Dérive des pesticides","À quelle fréquence la dérive des pesticides se produit-elle au sein de votre entreprise agricole?",null,null,""]
["Stockage et élimination inappropriés","À quelle fréquence des problèmes liés à l’entreposage et à l’élimination des pesticides se produisent-ils au sein de votre entreprise agricole?",null,null,{"$f":"IF(C29+D29>0,C29+D29,\"\")","v":""}]
["Formation insuffisante à l'utilisation des pesticides","À quelle fréquence des incidents (même les plus anodins) liés à une formation insuffisante sur l’utilisation des pesticides se produisent-ils au sein de votre entreprise agricole?",null,null,{"$f":"IF(C30+D30>0,C30+D30,\"\")","v":""}]
["Gestion des sols, de l'eau et de la biodiversité"]
["Pénurie d'eau","À quelle fréquence éprouvez-vous des problèmes de pénurie d’eau sur votre entreprise agricole?",null,null,{"$f":"IF(C32+D32>0,C32+D32,\"\")","v":""}]
["Érosion des sols","À quelle fréquence constatez-vous les effets de l’érosion du sol sur votre entreprise agricole, soit par vous-mêmes ou avec l’aide d’un agronome?",null,null,{"$f":"IF(C33+D33>0,C33+D33,\"\")","v":""}]
["Compactage du sol","À quelle fréquence constatez-vous un compactage de vos sols sur votre entreprise agricole, soit par vous-même ou avec l’aide d’un agronome?",null,null,{"$f":"IF(C34+D34>0,C34+D34,\"\")","v":""}]
["Diminution de la santé des sols","À quelle fréquence constatez-vous la présence de zones affectées par une perte de fertilité ?",null,null,""]
["Pollution de l'eau","À quelle fréquence éprouvez-vous des problèmes ou avez-vous des préoccupations concernant la contamination de l’eau sur votre entreprise agricole?",null,null,""]
["Drainages","À quelle fréquence éprouvez-vous des problèmes associés au drainage sur votre entreprise agricole?",null,null,""]
["Biodiversité","Quelle est la probabilité que vos pratiques agricoles contribuent au déclin de la biodiversité et des espèces menacées ou en voie de disparition dans votre région?",null,null,""]
["Espèces invasives","À quelle fréquence des problèmes liés aux espèces envahissantes surviennent-ils dans votre cercle proche ou votre région?",null,null,{"$f":"IF(C39+D39>0,C39+D39,\"\")","v":""}]
["Pollution externe","Quelle est la probabilité que vos sols soient polluées par un facteur externe (industrie à risque …)  ?",null,null,{"$f":"IF(C40+D40>0,C40+D40,\"\")","v":""}]

{"sheet":"3_Resultat","index":22,"n_rows":28,"n_cols":13,"rows_kept":28,"cut":false,"hidden":false,"merged":[[16,8,16,11],[17,8,17,11],[10,8,10,11],[11,8,11,11],[12,8,12,11],[14,8,14,11],[15,8,15,11],[13,8,13,11],[0,8,0,12],[1,8,1,11],[2,8,2,11],[3,8,3,11],[4,8,4,11],[5,8,5,11],[6,8,6,11],[7,8,7,11],[8,8,8,11],[9,8,9,11],[18,8,18,11],[19,8,19,11],[20,8,20,11],[21,8,21,11],[22,8,22,11]]}
["Risiko \n(A)","Häufigkeit des Risikos\n(B) ","Ausmaß oder Gefährdung des Risikos\n(C)","Grad des Risikos\n(B+C=D)","Bereitschaft\n( E )","Anteil Handlungsbedarf\n(F)","Empfehlung des weiteren Vorgehens\n(G)",null,"Prioritätenliste"]
["Thema / Bereich ","Zahl von 1 - 5       Immer=5; Gelegentlich=3; Selten=1","Zahl von 1 - 5\nSchwerwiegend=5; Mäßig=3; Geringfügig=1","(Häufigkeit des Risikos + Ausmaß der Risikoexposition)","Zahl von 1-10\nSehr gut vorbereitet=10; Einigermaßen vorbereitet=5; Nicht vorbereitet=1","Grösse des Handlungbedarfs","Weitere Details",null,"Kategorie ",null,null,null,"Dringlichkeit"]
["Personen",{"$f":"SUM(B4:B8)/5","v":0},{"$f":"SUM(C4:C8)/5","v":0},{"$f":"IF(B3+C3>0,B3+C3,\"\")","v":""},{"$f":"SUM(E4:E8)/5","v":0},null,null,null,{"$f":"Daten!T5","v":{"$error":"#DIV/0!"}},null,null,null,{"$f":"Daten!U5","v":{"$error":"#DIV/0!"}}]
["Gesundheit und Sicherheit am Arbeitsplatz",{"$f":"SUM('2.1_Personen'!C5:C19)/15","v":0},{"$f":"SUM('2.1_Personen'!D5:D19)/15","v":0},"",{"$f":"SUM('2.1_Personen'!F5:F19)/15","v":0},{"$f":"Daten!G21/(Daten!G20+Daten!G21)","v":{"$error":"#DIV/0!"}},{"$f":"IF(F4>=80%,\"Dringende Anpassungen nötig!\",IF(AND(F4>=60%,F4<80%),\"Hohe Priorität\",IF(AND(F4>=40%,F4<60%),\"Handlungsbedarf\",IF(AND(F4>=20%,F4<40%),\"Aufpassen und optimieren\",\"Aufmerksam bleiben\"))))","v":{"$error":"#DIV/0!"}},null,{"$f":"Daten!T6","v":{"$error":"#DIV/0!"}},null,null,null,{"$f":"Daten!U6","v":{"$error":"#DIV/0!"}}]
["Persönliches Wohlbefinden",{"$f":"SUM('2.1_Personen'!C21:C24)/4","v":0},{"$f":"SUM('2.1_Personen'!D21:D24)/4","v":0},"",{"$f":"SUM('2.1_Personen'!F21:F24)/4","v":0},{"$f":"Daten!H9/(Daten!H8+Daten!H9)","v":{"$error":"#DIV/0!"}},{"$f":"IF(F5>=80%,\"Dringende Anpassungen nötig!\",IF(AND(F5>=60%,F5<80%),\"Hohe Priorität\",IF(AND(F5>=40%,F5<60%),\"Handlungsbedarf\",IF(AND(F5>=20%,F5<40%),\"Aufpassen und optimieren\",\"Aufmerksam bleiben\"))))","v":{"$error":"#DIV/0!"}},null,{"$f":"Daten!T7","v":{"$error":"#DIV/0!"}},null,null,null,{"$f":"Daten!U7","v":{"$error":"#DIV/0!"}}]
["Eingestellte Arbeitskräfte ",{"$f":"SUM('2.1_Personen'!C26:C34)/9","v":0},{"$f":"SUM('2.1_Personen'!D26:D34)/9","v":0},"",{"$f":"SUM('2.1_Personen'!F26:F34)/9","v":0},{"$f":"Daten!H20/(Daten!H19+Daten!H20)","v":{"$error":"#DIV/0!"}},{"$error":"#DIV/0!"},null,{"$f":"Daten!T8","v":{"$error":"#DIV/0!"}},null,null,null,{"$f":"Daten!U8","v":{"$error":"#DIV/0!"}}]
["Familienbeziehungen ",{"$f":"SUM('2.1_Personen'!C36:C40)/5","v":0},{"$f":"SUM('2.1_Personen'!D36:D40)/5","v":0},"",{"$f":"SUM('2.1_Personen'!F36:F40)/5","v":0},{"$f":"Daten!G28/(Daten!G27+Daten!G28)","v":{"$error":"#DIV/0!"}},{"$error":"#DIV/0!"},null,{"$f":"Daten!T9","v":{"$error":"#DIV/0!"}},null,null,null,{"$f":"Daten!U9","v":{"$error":"#DIV/0!"}}]
["Unternehmer und Berater ",{"$f":"SUM('2.1_Personen'!C42:C44)/3","v":0},{"$f":"SUM('2.1_Personen'!D42:D44)/3","v":0},"",{"$f":"SUM('2.1_Personen'!F42:F44)/3","v":0},{"$f":"Daten!H25/(Daten!H24+Daten!H25)","v":{"$error":"#DIV/0!"}},{"$error":"#DIV/0!"},null,{"$f":"Daten!T10","v":{"$error":"#DIV/0!"}},null,null,null,{"$f":"Daten!U10","v":{"$error":"#DIV/0!"}}]
["Finanzen",{"$f":"SUM(B10:B11)/2","v":0},{"$f":"SUM(C10:C11)/2","v":0},"",{"$f":"SUM(E10:E11)/2","v":0},null,null,null,{"$f":"Daten!T11","v":{"$error":"#DIV/0!"}},null,null,null,{"$f":"Daten!U11","v":{"$error":"#DIV/0!"}}]
["Geldmanagement",{"$f":"SUM('2.2_Finanzen'!C5:C13)/9","v":0},{"$f":"SUM('2.2_Finanzen'!D5:D13)/9","v":0},"",{"$f":"SUM('2.2_Finanzen'!F5:F13)/9","v":0},{"$f":"Daten!I13/(Daten!I12+Daten!I13)","v":{"$error":"#DIV/0!"}},{"$error":"#DIV/0!"},null,{"$f":"Daten!T12","v":{"$error":"#DIV/0!"}},null,null,null,{"$f":"Daten!U12","v":{"$error":"#DIV/0!"}}]
["Investitionen",{"$f":"SUM('2.2_Finanzen'!C15:C18)/4","v":0},{"$f":"SUM('2.2_Finanzen'!D15:D18)/4","v":0},"",{"$f":"SUM('2.2_Finanzen'!F15:F18)/4","v":0},{"$f":"Daten!I19/(Daten!I18+Daten!I19)","v":{"$error":"#DIV/0!"}},{"$error":"#DIV/0!"},null,{"$f":"Daten!T13","v":{"$error":"#DIV/0!"}},null,null,null,{"$f":"Daten!U13","v":{"$error":"#DIV/0!"}}]
["Markt",{"$f":"SUM(B13:B14)/2","v":0},{"$f":"SUM(C13:C14)/2","v":0},{"$f":"IF(B12+C12>0,B12+C12,\"\")","v":""},{"$f":"SUM(E13:E14)/2","v":0},null,null,null,{"$f":"Daten!T14","v":{"$error":"#DIV/0!"}},null,null,null,{"$f":"Daten!U14","v":{"$error":"#DIV/0!"}}]
["Einkauf, Beschaffung",{"$f":"SUM('2.3_Märkte'!C5:C13)/9","v":0},{"$f":"SUM('2.3_Märkte'!D5:D13)/9","v":0},"",{"$f":"SUM('2.3_Märkte'!F5:F13)/9","v":0},{"$f":"Daten!I30/(Daten!I29+Daten!I30)","v":{"$error":"#DIV/0!"}},{"$error":"#DIV/0!"},null,{"$f":"Daten!T15","v":{"$error":"#DIV/0!"}},null,null,null,{"$f":"Daten!U15","v":{"$error":"#DIV/0!"}}]
["Verkauf, Preise und Handel",{"$f":"SUM('2.3_Märkte'!C15:C18)/4","v":0},{"$f":"SUM('2.3_Märkte'!D15:D18)/4","v":0},{"$f":"IF(B14+C14>0,B14+C14,\"\")","v":""},{"$f":"SUM('2.3_Märkte'!F15:F18)/4","v":0},{"$f":"Daten!N25/(Daten!N24+Daten!N25)","v":{"$error":"#DIV/0!"}},{"$error":"#DIV/0!"},null,{"$f":"Daten!T16","v":{"$error":"#DIV/0!"}},null,null,null,{"$f":"Daten!U16","v":{"$error":"#DIV/0!"}}]
["Management",{"$f":"SUM(B16:B19)/4","v":0},{"$f":"SUM(C16:C19)/4","v":0},"",{"$f":"SUM(E16:E19)/4","v":0},null,null,null,{"$f":"Daten!T17","v":{"$error":"#DIV/0!"}},null,null,null,{"$f":"Daten!U17","v":{"$error":"#DIV/0!"}}]
["Unternehmensstrategie und -entwicklung ",{"$f":"SUM('2.4_Management'!$C$5:$C$13)/9","v":0},{"$f":"SUM('2.4_Management'!$D$5:$D$13)/9","v":0},"",{"$f":"SUM('2.4_Management'!$F$5:$F$13)/9","v":0},{"$f":"Daten!J13/(Daten!J12+Daten!J13)","v":{"$error":"#DIV/0!"}},{"$error":"#DIV/0!"},null,{"$f":"Daten!T18","v":{"$error":"#DIV/0!"}},null,null,null,{"$f":"Daten!U18","v":{"$error":"#DIV/0!"}}]
["Technologie und Innovation",{"$f":"SUM('2.4_Management'!$C$15:$C$17)/3","v":0},{"$f":"SUM('2.4_Management'!$D$15:$D$17)/3","v":0},"",{"$f":"SUM('2.4_Management'!$F$15:$F$17)/3","v":0},{"$f":"Daten!J18/(Daten!J17+Daten!J18)","v":{"$error":"#DIV/0!"}},{"$error":"#DIV/0!"},null,{"$f":"Daten!T19","v":{"$error":"#DIV/0!"}},null,null,null,{"$f":"Daten!U19","v":{"$error":"#DIV/0!"}}]
["Hofübergabe ",{"$f":"SUM('2.4_Management'!$C$19:$C$25)/7","v":0},{"$f":"SUM('2.4_Management'!$D$19:$D$25)/7","v":0},"",{"$f":"SUM('2.4_Management'!$F$19:$F$25)/7","v":0},{"$f":"Daten!J27/(Daten!J26+Daten!J27)","v":{"$error":"#DIV/0!"}},{"$error":"#DIV/0!"},null,{"$f":"Daten!T20","v":{"$error":"#DIV/0!"}},null,null,null,{"$f":"Daten!U20","v":{"$error":"#DIV/0!"}}]
["Betrieb",{"$f":"SUM('2.4_Management'!$C$27:$C$35)/9","v":0},{"$f":"SUM('2.4_Management'!$D$27:$D$35)/9","v":0},"",{"$f":"SUM('2.4_Management'!$F$27:$F$35)/9","v":0},{"$f":"Daten!K12/(Daten!K11+Daten!K12)","v":{"$error":"#DIV/0!"}},{"$error":"#DIV/0!"},null,{"$f":"Daten!T21","v":{"$error":"#DIV/0!"}},null,null,null,{"$f":"Daten!U21","v":{"$error":"#DIV/0!"}}]
["Betriebsumgebung",{"$f":"SUM(B21:B22)/2","v":0},{"$f":"SUM(C21:C22)/2","v":0},"",{"$f":"SUM(E21:E22)/2","v":0},null,null,null,{"$f":"Daten!T22","v":{"$error":"#DIV/0!"}},null,null,null,{"$f":"Daten!U22","v":{"$error":"#DIV/0!"}}]
["Öffentliches Vertrauen und Einbeziehung der Verbraucher",{"$f":"SUM('2.5_Betriebsumgebung'!C5:C10)/6","v":0},{"$f":"SUM('2.5_Betriebsumgebung'!D5:D10)/6","v":0},"",{"$f":"SUM('2.5_Betriebsumgebung'!F5:F10)/6","v":0},{"$f":"Daten!K20/(Daten!K19+Daten!K20)","v":{"$error":"#DIV/0!"}},{"$error":"#DIV/0!"},null,{"$f":"Daten!T23","v":{"$error":"#DIV/0!"}},null,null,null,{"$f":"Daten!U23","v":{"$error":"#DIV/0!"}}]
["Politik, Politiken und Vorschriften",{"$f":"SUM('2.5_Betriebsumgebung'!C12:C14)/3","v":0},{"$f":"SUM('2.5_Betriebsumgebung'!D12:D14)/3","v":0},"",{"$f":"SUM('2.5_Betriebsumgebung'!F12:F14)/3","v":0},{"$f":"Daten!K25/(Daten!K24+Daten!K25)","v":{"$error":"#DIV/0!"}},{"$error":"#DIV/0!"},null,{"$f":"Daten!T24","v":{"$error":"#DIV/0!"}},null,null,null,{"$f":"Daten!U24","v":{"$error":"#DIV/0!"}}]
["Produktion",{"$f":"SUM(B24:B28)/5","v":0},{"$f":"SUM(C24:C28)/5","v":0},"",{"$f":"SUM(E24:E28)/5","v":0}]
["Umwelt und Klima",{"$f":"SUM('2.6_Produktion'!$C$5:$C$11)/7","v":0},{"$f":"SUM('2.6_Produktion'!$D$5:$D$11)/7","v":0},"",{"$f":"SUM('2.6_Produktion'!$F$5:$F$11)/7","v":0},{"$f":"Daten!L12/(Daten!L11+Daten!L12)","v":{"$error":"#DIV/0!"}},{"$error":"#DIV/0!"}]
["Gesundheit und Wohlergehen von Tieren",{"$f":"SUM('2.6_Produktion'!$C$13:$C$16)/4","v":0},{"$f":"SUM('2.6_Produktion'!$D$13:$D$16)/4","v":0},"",{"$f":"SUM('2.6_Produktion'!$F$13:$F$16)/4","v":0},{"$f":"Daten!L18/(Daten!L17+Daten!L18)","v":{"$error":"#DIV/0!"}},{"$error":"#DIV/0!"}]
["Nährstoffmanagement ",{"$f":"SUM('2.6_Produktion'!$C$18:$C$22)/5","v":0},{"$f":"SUM('2.6_Produktion'!$D$18:$D$22)/5","v":0},"",{"$f":"SUM('2.6_Produktion'!$F$18:$F$22)/5","v":0},{"$f":"Daten!L25/(Daten!L24+Daten!L25)","v":{"$error":"#DIV/0!"}},{"$error":"#DIV/0!"}]
["Pflanzenschutz",{"$f":"SUM('2.6_Produktion'!$C$24:$C$30)/7","v":0},{"$f":"SUM('2.6_Produktion'!$D$24:$D$30)/7","v":0},"",{"$f":"SUM('2.6_Produktion'!$F$24:$F$30)/7","v":0},{"$f":"Daten!M13/(Daten!M12+Daten!M13)","v":{"$error":"#DIV/0!"}},{"$error":"#DIV/0!"}]
["Boden-, Wasser- und Biodiversitäts-management",{"$f":"SUM('2.6_Produktion'!$C$32:$C$40)/9","v":0},{"$f":"SUM('2.6_Produktion'!$D$32:$D$40)/9","v":0},"",{"$f":"SUM('2.6_Produktion'!$F$32:$F$40)/9","v":0},{"$f":"Daten!M24/(Daten!M23+Daten!M24)","v":{"$error":"#DIV/0!"}},{"$error":"#DIV/0!"}]

{"sheet":"3.1_Grafiken","index":23,"n_rows":7,"n_cols":23,"rows_kept":7,"cut":false,"hidden":false,"merged":[[0,22,2,27],[3,22,4,27],[6,22,7,27]]}
[null,null,null,null,null,null,null,null,null,null,null,null,null,null,null,null,null,null,null,null,null,null,"Legende "]
[]
[]
[null,null,null,null,null,null,null,null,null,null,null,null,null,null,null,null,null,null,null,null,null,null,"Schwarz = Eigene schnelle Einschätzung "]
[]
[]
[null,null,null,null,null,null,null,null,null,null,null,null,null,null,null,null,null,null,null,null,null,null,"Violett = Resultat der Risikoauswertung "]

{"sheet":"Öffentlichkeit","index":24,"n_rows":0,"n_cols":0,"rows_kept":0,"cut":false,"hidden":true,"merged":[]}

{"sheet":"Umwelt","index":25,"n_rows":0,"n_cols":0,"rows_kept":0,"cut":false,"hidden":true,"merged":[]}

{"sheet":"Strategie","index":26,"n_rows":0,"n_cols":0,"rows_kept":0,"cut":false,"hidden":true,"merged":[]}

{"sheet":"Märkte","index":27,"n_rows":0,"n_cols":0,"rows_kept":0,"cut":false,"hidden":true,"merged":[]}

{"sheet":"Geldmanagement","index":28,"n_rows":0,"n_cols":0,"rows_kept":0,"cut":false,"hidden":true,"merged":[]}

{"sheet":"Sicherheit","index":29,"n_rows":0,"n_cols":0,"rows_kept":0,"cut":false,"hidden":true,"merged":[]}

{"sheet":"Persönliches Wohlbefinden","index":30,"n_rows":0,"n_cols":0,"rows_kept":0,"cut":false,"hidden":true,"merged":[]}

{"sheet":"3_Évaluation","index":31,"n_rows":28,"n_cols":12,"rows_kept":28,"cut":false,"hidden":true,"merged":[[25,8,25,10],[26,8,26,10],[27,8,27,10],[19,8,19,10],[20,8,20,10],[21,8,21,10],[22,8,22,10],[24,8,24,10],[18,8,18,10],[6,8,6,10],[7,8,7,10],[8,8,8,10],[9,8,9,10],[10,8,10,10],[11,8,11,10],[12,8,12,10],[14,8,14,10],[15,8,15,10],[16,8,16,10],[17,8,17,10],[13,8,13,10],[5,8,5,10],[0,8,0,11],[1,8,1,10],[2,8,2,10],[3,8,3,10],[4,8,4,10]]}
["Risk que\n(A)","Probabilité  du risque   (B) ","Sévérité de l'impact du risque\n(C)","Degré de risque\n(B+C=D)","Prévention du risque\n( E )","Part des besoins d'action\n(F)","Recommandation de la marche à suivre\n(G)",null,"Liste des priorités"]
["Thème","Nombre de 1 à 5       Toujours=5 ; Occasionnellement=3 ; Rarement=1","Nombre de 1 à 5\nGrave=5 ; Modéré=3 ; Mineur=1","(fréquence du risque + gravité de l'impact du risque)","Nombre de 1 à 10\nTrès bien préparé=10 ; Assez bien préparé=5 ; Pas préparé=1","Grandeur du besoin d'action","Plus de détails",null,"Catégories",null,null,"Priorité"]
["Personnes",{"$f":"SUM(B4:B8)/5","v":0},{"$f":"SUM(C4:C8)/5","v":0},{"$f":"IF(B3+C3>0,B3+C3,\"\")","v":""},{"$f":"SUM(E4:E8)/5","v":0},null,null,null,{"$f":"Daten!T29","v":{"$error":"#DIV/0!"}},null,null,{"$f":"Daten!U29","v":{"$error":"#DIV/0!"}}]
["Santé et sécurité au travail",{"$f":"SUM('2.1_Personnes'!$C$5:$C$19)/15","v":0},{"$f":"SUM('2.1_Personnes'!$D$5:$D$19)/15","v":0},{"$f":"IF(B4+C4>0,B4+C4,\"\")","v":""},{"$f":"SUM('2.1_Personnes'!$F$5:$F$19)/15","v":0},{"$f":"Daten!G46/(Daten!G45+Daten!G46)","v":{"$error":"#DIV/0!"}},{"$f":"IF(F4>=80%,\"Adaptations urgentes\",IF(AND(F4>=60%,F4<80%),\"Priorité haute\",IF(AND(F4>=40%,F4<60%),\"Nécessité d'agir\",IF(AND(F4>=20%,F4<40%),\"Observation et optimisation\",\"Rester vigilant\"))))","v":{"$error":"#DIV/0!"}},null,{"$f":"Daten!T30","v":{"$error":"#DIV/0!"}},null,null,{"$f":"Daten!U30","v":{"$error":"#DIV/0!"}}]
["Bien-être personnel",{"$f":"SUM('2.1_Personnes'!$C$21:$C$24)/4","v":0},{"$f":"SUM('2.1_Personnes'!$D$21:$D$24)/4","v":0},"",{"$f":"SUM('2.1_Personnes'!$F$21:$F$24)/4","v":0},{"$f":"Daten!G52/(Daten!G51+Daten!G52)","v":{"$error":"#DIV/0!"}},{"$error":"#DIV/0!"},null,{"$f":"Daten!T31","v":{"$error":"#DIV/0!"}},null,null,{"$f":"Daten!U31","v":{"$error":"#DIV/0!"}}]
["Employés",{"$f":"SUM('2.1_Personnes'!$C$26:$C$34)/9","v":0},{"$f":"SUM('2.1_Personen'!D26:D34)/9","v":0},"",{"$f":"SUM('2.1_Personen'!F26:F34)/9","v":0},{"$f":"Daten!H40/(Daten!H39+Daten!H40)","v":{"$error":"#DIV/0!"}},{"$error":"#DIV/0!"},null,{"$f":"Daten!T32","v":{"$error":"#DIV/0!"}},null,null,{"$f":"Daten!U32","v":{"$error":"#DIV/0!"}}]
["Relations familiales",{"$f":"SUM('2.1_Personnes'!$C$36:$C$40)/5","v":0},{"$f":"SUM('2.1_Personnes'!$D$36:$D$40)/5","v":0},"",{"$f":"SUM('2.1_Personnes'!$F$36:$F$40)/5","v":0},{"$f":"Daten!H47/(Daten!H46+Daten!H47)","v":{"$error":"#DIV/0!"}},{"$error":"#DIV/0!"},null,{"$f":"Daten!T33","v":{"$error":"#DIV/0!"}},null,null,{"$f":"Daten!U33","v":{"$error":"#DIV/0!"}}]
["Entrepreneur et conseiller",{"$f":"SUM('2.1_Personnes'!$C$42:$C$44)/3","v":0},{"$f":"SUM('2.1_Personnes'!$D$42:$D$44)/3","v":0},"",{"$f":"SUM('2.1_Personnes'!$F$42:$F$44)/3","v":0},{"$f":"Daten!H52/(Daten!H51+Daten!H52)","v":{"$error":"#DIV/0!"}},{"$error":"#DIV/0!"},null,{"$f":"Daten!T34","v":{"$error":"#DIV/0!"}},null,null,{"$f":"Daten!U34","v":{"$error":"#DIV/0!"}}]
["Finances",{"$f":"SUM(B10:B11)/2","v":0},{"$f":"SUM(C10:C11)/2","v":0},"",{"$f":"SUM(E10:E11)/2","v":0},null,null,null,{"$f":"Daten!T35","v":{"$error":"#DIV/0!"}},null,null,{"$f":"Daten!U35","v":{"$error":"#DIV/0!"}}]
["Gestion de l'argent",{"$f":"SUM('2.2_Finances'!C5:C13)/9","v":0},{"$f":"SUM('2.2_Finances'!D5:D13)/9","v":0},"",{"$f":"SUM('2.2_Finances'!F5:F13)/9","v":0},{"$f":"Daten!I41/(Daten!I40+Daten!I41)","v":{"$error":"#DIV/0!"}},{"$error":"#DIV/0!"},null,{"$f":"Daten!T36","v":{"$error":"#DIV/0!"}},null,null,{"$f":"Daten!U36","v":{"$error":"#DIV/0!"}}]
["Investissements",{"$f":"SUM('2.2_Finances'!C15:C18)/4","v":0},{"$f":"SUM('2.2_Finances'!D15:D18)/4","v":0},"",{"$f":"SUM('2.2_Finances'!F15:F18)/4","v":0},{"$f":"Daten!I47/(Daten!I46+Daten!I47)","v":{"$error":"#DIV/0!"}},{"$error":"#DIV/0!"},null,{"$f":"Daten!T37","v":{"$error":"#DIV/0!"}},null,null,{"$f":"Daten!U37","v":{"$error":"#DIV/0!"}}]
["Marché",{"$f":"SUM(B13:B14)/2","v":0},{"$f":"SUM(C13:C14)/2","v":0},"",{"$f":"SUM(E13:E14)/2","v":0},null,null,null,{"$f":"Daten!T38","v":{"$error":"#DIV/0!"}},null,null,{"$f":"Daten!U38","v":{"$error":"#DIV/0!"}}]
["Achats, approvisonnement ",{"$f":"SUM('2.3_Marchés'!C5:C19)/9","v":0},{"$f":"SUM('2.3_Marchés'!D5:D13)/9","v":0},"",{"$f":"SUM('2.3_Marchés'!F5:F13)/9","v":0},{"$f":"Daten!I58/(Daten!I57+Daten!I58)","v":{"$error":"#DIV/0!"}},{"$error":"#DIV/0!"},null,{"$f":"Daten!T39","v":{"$error":"#DIV/0!"}},null,null,{"$f":"Daten!U39","v":{"$error":"#DIV/0!"}}]
["Ventes, prix et commerce ",{"$f":"SUM('2.3_Marchés'!C15:C18)/4","v":0},{"$f":"SUM('2.3_Marchés'!D15:D18)/4","v":0},{"$f":"IF(B14+C14>0,B14+C14,\"\")","v":""},{"$f":"SUM('2.3_Marchés'!F15:F18)/4","v":0},{"$f":"Daten!M58/(Daten!M57+Daten!M58)","v":{"$error":"#DIV/0!"}},{"$f":"IF(F14>=80%,\"Adaptations urgentes\",IF(AND(F14>=60%,F14<80%),\"Priorité haute\",IF(AND(F14>=40%,F14<60%),\"Nécessité d'agir\",IF(AND(F14>=20%,F14<40%),\"Observation et optimisation\",\"Rester vigilant\"))))","v":{"$error":"#DIV/0!"}},null,{"$f":"Daten!T40","v":{"$error":"#DIV/0!"}},null,null,{"$f":"Daten!U40","v":{"$error":"#DIV/0!"}}]
["Gestion",{"$f":"SUM(B16:B19)/4","v":0},{"$f":"SUM(C16:C19)/4","v":0},"",{"$f":"SUM(E16:E19)/4","v":0},null,null,null,{"$f":"Daten!T41","v":{"$error":"#DIV/0!"}},null,null,{"$f":"Daten!U41","v":{"$error":"#DIV/0!"}}]
["Stratégie et développement de l'entreprise ",{"$f":"SUM('2.4_Gestion'!C5:C13)/9","v":0},{"$f":"SUM('2.4_Gestion'!D5:D13)/9","v":0},"",{"$f":"SUM('2.4_Gestion'!F5:F13)/9","v":0},{"$f":"Daten!J40/(Daten!J39+Daten!J40)","v":{"$error":"#DIV/0!"}},{"$error":"#DIV/0!"},null,{"$f":"Daten!T42","v":{"$error":"#DIV/0!"}},null,null,{"$f":"Daten!U42","v":{"$error":"#DIV/0!"}}]
["Innovation",{"$f":"SUM('2.4_Gestion'!C15:C17)/3","v":0},{"$f":"SUM('2.4_Gestion'!D15:D17)/3","v":0},"",{"$f":"SUM('2.4_Gestion'!F15:F17)/3","v":0},{"$f":"Daten!J45/(Daten!J44+Daten!J45)","v":{"$error":"#DIV/0!"}},{"$error":"#DIV/0!"},null,{"$f":"Daten!T43","v":{"$error":"#DIV/0!"}},null,null,{"$f":"Daten!U43","v":{"$error":"#DIV/0!"}}]
["Planification de la transmission",{"$f":"SUM('2.4_Gestion'!C19:C25)/7","v":0},{"$f":"SUM('2.4_Gestion'!D19:D25)/7","v":0},"",{"$f":"SUM('2.4_Gestion'!F19:F25)/7","v":0},{"$f":"Daten!J54/(Daten!J53+Daten!J54)","v":{"$error":"#DIV/0!"}},{"$error":"#DIV/0!"},null,{"$f":"Daten!T44","v":{"$error":"#DIV/0!"}},null,null,{"$f":"Daten!U44","v":{"$error":"#DIV/0!"}}]
["Entreprise",{"$f":"SUM('2.4_Gestion'!C27:C35)/9","v":0},{"$f":"SUM('2.4_Gestion'!D27:D35)/9","v":0},"",{"$f":"SUM('2.4_Gestion'!F27:F35)/9","v":0},{"$f":"Daten!K39/(Daten!K38+Daten!K39)","v":{"$error":"#DIV/0!"}},{"$error":"#DIV/0!"},null,{"$f":"Daten!T45","v":{"$error":"#DIV/0!"}},null,null,{"$f":"Daten!U45","v":{"$error":"#DIV/0!"}}]
["l'environnement commercial",{"$f":"SUM(B21:B22)/2","v":0},{"$f":"SUM(C21:C22)/2","v":0},"",{"$f":"SUM(E21:E22)/2","v":0},null,null,null,{"$f":"Daten!T46","v":{"$error":"#DIV/0!"}},null,null,{"$f":"Daten!U46","v":{"$error":"#DIV/0!"}}]
["Confiance du public et implication des consommateurs",{"$f":"SUM('2.5_Environnement commercial'!C5:C10)/6","v":0},{"$f":"SUM('2.5_Environnement commercial'!D5:D10)/6","v":0},"",{"$f":"SUM('2.5_Environnement commercial'!F5:F10)/6","v":0},{"$f":"Daten!K47/(Daten!K46+Daten!K47)","v":{"$error":"#DIV/0!"}},{"$error":"#DIV/0!"},null,{"$f":"Daten!T47","v":{"$error":"#DIV/0!"}},null,null,{"$f":"Daten!U47","v":{"$error":"#DIV/0!"}}]
["Politique, politiques et réglementations",{"$f":"SUM('2.5_Environnement commercial'!C12:C14)/3","v":0},{"$f":"SUM('2.5_Environnement commercial'!D12:D14)/3","v":0},"",{"$f":"SUM('2.5_Environnement commercial'!F12:F14)/3","v":0},{"$f":"Daten!K52/(Daten!K51+Daten!K52)","v":{"$error":"#DIV/0!"}},{"$error":"#DIV/0!"},null,{"$f":"Daten!T48","v":{"$error":"#DIV/0!"}},null,null,{"$f":"Daten!U48","v":{"$error":"#DIV/0!"}}]
["Production",{"$f":"SUM(B24:B28)/5","v":0},{"$f":"SUM(C24:C28)/5","v":0},"",{"$f":"SUM(E24:E28)/5","v":0}]
["Environnement et climat",{"$f":"SUM('2.6_Production'!C5:C11)/7","v":0},{"$f":"SUM('2.6_Production'!D5:D11)/7","v":0},"",{"$f":"SUM('2.6_Production'!F5:F11)/7","v":0},{"$f":"Daten!L37/(Daten!L36+Daten!L37)","v":{"$error":"#DIV/0!"}},{"$error":"#DIV/0!"}]
["Santé et bien-être des animaux",{"$f":"SUM('2.6_Production'!C13:C16)/4","v":0},{"$f":"SUM('2.6_Production'!D13:D16)/4","v":0},"",{"$f":"SUM('2.6_Production'!F13:F16)/4","v":0},{"$f":"Daten!L43/(Daten!L42+Daten!L43)","v":{"$error":"#DIV/0!"}},{"$error":"#DIV/0!"}]
["Gestion des nutriments ",{"$f":"SUM('2.6_Production'!C18:C22)/5","v":0},{"$f":"SUM('2.6_Production'!D18:D22)/5","v":0},"",{"$f":"SUM('2.6_Production'!F18:F22)/5","v":0},{"$f":"Daten!L50/(Daten!L49+Daten!L50)","v":{"$error":"#DIV/0!"}},{"$error":"#DIV/0!"}]
["Protection des plantes",{"$f":"SUM('2.6_Production'!C24:C30)/7","v":0},{"$f":"SUM('2.6_Production'!D24:D30)/7","v":0},"",{"$f":"SUM('2.6_Production'!F24:F30)/7","v":0},{"$f":"Daten!M39/(Daten!M38+Daten!M39)","v":{"$error":"#DIV/0!"}},{"$error":"#DIV/0!"}]
["Gestion des sols, de l'eau et de la biodiversité",{"$f":"SUM('2.6_Production'!C32:C40)/9","v":0},{"$f":"SUM('2.6_Production'!D32:D40)/9","v":0},"",{"$f":"SUM('2.6_Production'!F32:F40)/9","v":0},{"$f":"Daten!M50/(Daten!M49+Daten!M50)","v":{"$error":"#DIV/0!"}},{"$f":"IF(F28>=80%,\"Adaptations urgentes\",IF(AND(F28>=60%,F28<80%),\"Priorité haute\",IF(AND(F28>=40%,F28<60%),\"Nécessité d'agir\",IF(AND(F28>=20%,F28<40%),\"Observation et optimisation\",\"Rester vigilant\"))))","v":{"$error":"#DIV/0!"}}]

{"sheet":"3.1_Graphiques","index":32,"n_rows":7,"n_cols":22,"rows_kept":7,"cut":false,"hidden":true,"merged":[[0,21,2,26],[3,21,4,26],[6,21,7,26]]}
[null,null,null,null,null,null,null,null,null,null,null,null,null,null,null,null,null,null,null,null,null,"Legende "]
[]
[]
[null,null,null,null,null,null,null,null,null,null,null,null,null,null,null,null,null,null,null,null,null,"Noir = Propre évaluation rapide"]
[]
[]
[null,null,null,null,null,null,null,null,null,null,null,null,null,null,null,null,null,null,null,null,null,"Violet = résultat de l'évaluation des risques "]

{"sheet":"Marchés","index":33,"n_rows":0,"n_cols":0,"rows_kept":0,"cut":false,"hidden":true,"merged":[]}

{"sheet":"Environnement","index":34,"n_rows":0,"n_cols":0,"rows_kept":0,"cut":false,"hidden":true,"merged":[]}

{"sheet":"Public","index":35,"n_rows":0,"n_cols":0,"rows_kept":0,"cut":false,"hidden":true,"merged":[]}

{"sheet":"Stratégie","index":36,"n_rows":0,"n_cols":0,"rows_kept":0,"cut":false,"hidden":true,"merged":[]}

{"sheet":"Investissements","index":37,"n_rows":0,"n_cols":0,"rows_kept":0,"cut":false,"hidden":true,"merged":[]}

{"sheet":"Bien-être personnel","index":38,"n_rows":0,"n_cols":0,"rows_kept":0,"cut":false,"hidden":true,"merged":[]}

{"sheet":"Santé","index":39,"n_rows":0,"n_cols":0,"rows_kept":0,"cut":false,"hidden":true,"merged":[]}

{"sheet":"Daten","index":40,"n_rows":58,"n_cols":21,"rows_kept":58,"cut":false,"hidden":true,"merged":[]}
[]
[null,null,null,null,null,null,null,null,null,null,{"$f":"'2.4_Management'!G35","v":0}]
[null,null,null,null,null,null,null,null,{"$f":"'2.2_Finanzen'!G12","v":0},{"$f":"'2.4_Management'!G12","v":0},{"$f":"'2.4_Management'!G34","v":0}]
[null,null,null,null,null,null,null,{"$f":"'2.1_Personen'!G24","v":0},{"$f":"'2.2_Finanzen'!G13","v":0},{"$f":"'2.4_Management'!G13","v":0},{"$f":"'2.4_Management'!G33","v":0},{"$f":"'2.6_Produktion'!G6","v":0},null,null,null,"Kategorien","Wichtigkeit ","Hilfe",null,"Kategorien"]
[null,null,null,null,null,null,{"$f":"'2.1_Personen'!G5","v":0},{"$f":"'2.1_Personen'!G21","v":0},{"$f":"'2.2_Finanzen'!G5","v":0},{"$f":"'2.4_Management'!G5","v":0},{"$f":"'2.4_Management'!G27","v":0},{"$f":"'2.6_Produktion'!G5","v":0},{"$f":"'2.6_Produktion'!G24","v":0},null,null,{"$f":"'3_Resultat'!A4","v":"Gesundheit und Sicherheit am Arbeitsplatz"},{"$f":"'3_Resultat'!F4","v":{"$error":"#DIV/0!"}},{"$f":"+Q5-ROW()/1000000","v":{"$error":"#DIV/0!"}},null,{"$f":"+INDEX($P$5:$P$24,MATCH(LARGE($R$5:$R$24,ROW(R1)),$R$5:$R$24,0))","v":{"$error":"#DIV/0!"}},{"$f":"+VLOOKUP(T5,$P$5:$Q$24,2,0)","v":{"$error":"#DIV/0!"}}]
[null,null,null,null,null,null,{"$f":"'2.1_Personen'!G6","v":0},{"$f":"'2.1_Personen'!G22","v":0},{"$f":"'2.2_Finanzen'!G6","v":0},{"$f":"'2.4_Management'!G6","v":0},{"$f":"'2.4_Management'!G28","v":0},{"$f":"'2.6_Produktion'!G6","v":0},{"$f":"'2.6_Produktion'!G25","v":0},null,null,{"$f":"'3_Resultat'!A5","v":"Persönliches Wohlbefinden"},{"$f":"'3_Resultat'!F5","v":{"$error":"#DIV/0!"}},{"$f":"+Q6-ROW()/1000000","v":{"$error":"#DIV/0!"}},null,{"$f":"+INDEX($P$5:$P$24,MATCH(LARGE($R$5:$R$24,ROW(R2)),$R$5:$R$24,0))","v":{"$error":"#DIV/0!"}},{"$f":"+VLOOKUP(T6,$P$5:$Q$24,2,0)","v":{"$error":"#DIV/0!"}}]
[null,null,null,null,null,null,{"$f":"'2.1_Personen'!G7","v":0},{"$f":"'2.1_Personen'!G23","v":0},{"$f":"'2.2_Finanzen'!G7","v":0},{"$f":"'2.4_Management'!G7","v":0},{"$f":"'2.4_Management'!G29","v":0},{"$f":"'2.6_Produktion'!G7","v":0},{"$f":"'2.6_Produktion'!G26","v":0},null,null,{"$f":"'3_Resultat'!A6","v":"Eingestellte Arbeitskräfte "},{"$f":"'3_Resultat'!F6","v":{"$error":"#DIV/0!"}},{"$error":"#DIV/0!"},null,{"$error":"#DIV/0!"},{"$error":"#DIV/0!"}]
[null,null,null,null,"JA","NEIN",{"$f":"'2.1_Personen'!G8","v":0},{"$f":"COUNTIF(H4:H7,\"JA\")","v":0},{"$f":"'2.2_Finanzen'!G8","v":0},{"$f":"'2.4_Management'!G8","v":0},{"$f":"'2.4_Management'!G30","v":0},{"$f":"'2.6_Produktion'!G8","v":0},{"$f":"'2.6_Produktion'!G27","v":0},null,null,{"$f":"'3_Resultat'!A7","v":"Familienbeziehungen "},{"$f":"'3_Resultat'!F7","v":{"$error":"#DIV/0!"}},{"$error":"#DIV/0!"},null,{"$error":"#DIV/0!"},{"$error":"#DIV/0!"}]
[null,null,null,null,"Die derzeitigen Massnahmen zur Risikovermeidung sind ausreichend","Ich kenne die Massnahmen, die ich ergreifen muss",{"$f":"'2.1_Personen'!G9","v":0},{"$f":"COUNTIF(H4:H7,\"NEIN\")","v":0},{"$f":"'2.2_Finanzen'!G9","v":0},{"$f":"'2.4_Management'!G9","v":0},{"$f":"'2.4_Management'!G31","v":0},{"$f":"'2.6_Produktion'!G9","v":0},{"$f":"'2.6_Produktion'!G28","v":0},null,null,{"$f":"'3_Resultat'!A8","v":"Unternehmer und Berater "},{"$f":"'3_Resultat'!F8","v":{"$error":"#DIV/0!"}},{"$error":"#DIV/0!"},null,{"$error":"#DIV/0!"},{"$error":"#DIV/0!"}]
[null,null,null,null,"Aus meiner Sicht braucht es hier keine spezifischen Massnahmen (Risiko gering)","Ich weiss, was ich tun muss, aber ich brauche Unterstützung (Beratung)",{"$f":"'2.1_Personen'!G10","v":0},{"$f":"'2.1_Personen'!G34","v":0},{"$f":"'2.2_Finanzen'!G10","v":0},{"$f":"'2.4_Management'!G10","v":0},{"$f":"'2.4_Management'!G32","v":0},{"$f":"'2.6_Produktion'!G10","v":0},{"$f":"'2.6_Produktion'!G29","v":0},null,null,{"$f":"'3_Resultat'!A10","v":"Geldmanagement"},{"$f":"'3_Resultat'!F10","v":{"$error":"#DIV/0!"}},{"$error":"#DIV/0!"},null,{"$error":"#DIV/0!"},{"$error":"#DIV/0!"}]
[null,null,null,null,null,"Ich weiss nicht wie ich das Risiko minimieren kann",{"$f":"'2.1_Personen'!G11","v":0},{"$f":"'2.1_Personen'!G33","v":0},{"$f":"'2.2_Finanzen'!G11","v":0},{"$f":"'2.4_Management'!G11","v":0},{"$f":"COUNTIF(K2:K10,\"JA\")","v":0},{"$f":"COUNTIF(L4:L10,\"JA\")","v":0},{"$f":"'2.6_Produktion'!G30","v":0},null,null,{"$f":"'3_Resultat'!A11","v":"Investitionen"},{"$f":"'3_Resultat'!F11","v":{"$error":"#DIV/0!"}},{"$error":"#DIV/0!"},null,{"$error":"#DIV/0!"},{"$error":"#DIV/0!"}]
[null,null,null,null,null,null,{"$f":"'2.1_Personen'!G12","v":0},{"$f":"'2.1_Personen'!G26","v":0},{"$f":"COUNTIF(I3:I11,\"JA\")","v":0},{"$f":"COUNTIF(J3:J11,\"JA\")","v":0},{"$f":"COUNTIF(K2:K10,\"NEIN\")","v":0},{"$f":"COUNTIF(L4:L10,\"NEIN\")","v":0},{"$f":"COUNTIF(M5:M11,\"JA\")","v":0},null,null,"Einkauf, Beschaffung",{"$f":"'3_Resultat'!F14","v":{"$error":"#DIV/0!"}},{"$error":"#DIV/0!"},null,{"$error":"#DIV/0!"},{"$error":"#DIV/0!"}]
[null,null,null,null,null,null,{"$f":"'2.1_Personen'!G13","v":0},{"$f":"'2.1_Personen'!G27","v":0},{"$f":"COUNTIF(I3:I11,\"NEIN\")","v":0},{"$f":"COUNTIF(J3:J11,\"NEIN\")","v":0},{"$f":"'2.5_Betriebsumgebung'!G10","v":0},{"$f":"'2.6_Produktion'!G13","v":0},{"$f":"COUNTIF(M5:M11,\"NEIN\")","v":0},null,null,"Verkauf, Preise und Handel",{"$f":"'3_Resultat'!F14","v":{"$error":"#DIV/0!"}},{"$error":"#DIV/0!"},null,{"$error":"#DIV/0!"},{"$error":"#DIV/0!"}]
[null,null,null,null,null,null,{"$f":"'2.1_Personen'!G14","v":0},{"$f":"'2.1_Personen'!G28","v":0},{"$f":"'2.2_Finanzen'!G18","v":0},{"$f":"'2.4_Management'!G15","v":0},{"$f":"'2.5_Betriebsumgebung'!G9","v":0},{"$f":"'2.6_Produktion'!G14","v":0},{"$f":"'2.6_Produktion'!G40","v":0},null,null,{"$f":"'3_Resultat'!A16","v":"Unternehmensstrategie und -entwicklung "},{"$f":"'3_Resultat'!F16","v":{"$error":"#DIV/0!"}},{"$error":"#DIV/0!"},null,{"$error":"#DIV/0!"},{"$error":"#DIV/0!"}]
[null,null,null,null,"OUI","NON",{"$f":"'2.1_Personen'!G15","v":0},{"$f":"'2.1_Personen'!G29","v":0},{"$f":"'2.2_Finanzen'!G15","v":0},{"$f":"'2.4_Management'!G16","v":0},{"$f":"'2.5_Betriebsumgebung'!G5","v":0},{"$f":"'2.6_Produktion'!G15","v":0},{"$f":"'2.6_Produktion'!G32","v":0},null,null,{"$f":"'3_Resultat'!A17","v":"Technologie und Innovation"},{"$f":"'3_Resultat'!F17","v":{"$error":"#DIV/0!"}},{"$error":"#DIV/0!"},null,{"$error":"#DIV/0!"},{"$error":"#DIV/0!"}]
[null,null,null,null,"Les mesures actuelles de prévention des risques sont suffisantes","Je connais les mesures à mettre en place",{"$f":"'2.1_Personen'!G16","v":0},{"$f":"'2.1_Personen'!G30","v":0},{"$f":"'2.2_Finanzen'!G16","v":0},{"$f":"'2.4_Management'!G17","v":0},{"$f":"'2.5_Betriebsumgebung'!G6","v":0},{"$f":"'2.6_Produktion'!G16","v":0},{"$f":"'2.6_Produktion'!G33","v":0},null,null,{"$f":"'3_Resultat'!A18","v":"Hofübergabe "},{"$f":"'3_Resultat'!F18","v":{"$error":"#DIV/0!"}},{"$error":"#DIV/0!"},null,{"$error":"#DIV/0!"},{"$error":"#DIV/0!"}]
[null,null,null,null,"De mon point de vue, aucune mesure spécifique n'est nécessaire ici (risque faible)","Je sais ce que je dois faire mais j'ai besoin d'aide (conseil)",{"$f":"'2.1_Personen'!G17","v":0},{"$f":"'2.1_Personen'!G31","v":0},{"$f":"'2.2_Finanzen'!G17","v":0},{"$f":"COUNTIF(J14:J16,\"JA\")","v":0},{"$f":"'2.5_Betriebsumgebung'!G7","v":0},{"$f":"COUNTIF(L13:L16,\"JA\")","v":0},{"$f":"'2.6_Produktion'!G34","v":0},null,null,{"$f":"'3_Resultat'!A19","v":"Betrieb"},{"$f":"'3_Resultat'!F19","v":{"$error":"#DIV/0!"}},{"$error":"#DIV/0!"},null,{"$error":"#DIV/0!"},{"$error":"#DIV/0!"}]
[null,null,null,null,null,"Je ne sais pas comment minimiser les risques.",{"$f":"'2.1_Personen'!G18","v":0},{"$f":"'2.1_Personen'!G32","v":0},{"$f":"COUNTIF(I14:I17,\"JA\")","v":0},{"$f":"COUNTIF(J14:J16,\"NEIN\")","v":0},{"$f":"'2.5_Betriebsumgebung'!G8","v":0},{"$f":"COUNTIF(L13:L16,\"NEIN\")","v":0},{"$f":"'2.6_Produktion'!G35","v":0},null,null,{"$f":"'3_Resultat'!A21","v":"Öffentliches Vertrauen und Einbeziehung der Verbraucher"},{"$f":"'3_Resultat'!F21","v":{"$error":"#DIV/0!"}},{"$error":"#DIV/0!"},null,{"$error":"#DIV/0!"},{"$error":"#DIV/0!"}]
[null,null,null,null,null,null,{"$f":"'2.1_Personen'!G19","v":0},{"$f":"COUNTIF(H10:H18,\"JA\")","v":0},{"$f":"COUNTIF(I14:I17,\"NEIN\")","v":0},{"$f":"'2.4_Management'!G25","v":0},{"$f":"COUNTIF(K13:K18,\"JA\")","v":0},{"$f":"'2.6_Produktion'!G18","v":0},{"$f":"'2.6_Produktion'!G36","v":0},null,null,{"$f":"'3_Resultat'!A22","v":"Politik, Politiken und Vorschriften"},{"$f":"'3_Resultat'!F22","v":{"$error":"#DIV/0!"}},{"$error":"#DIV/0!"},null,{"$error":"#DIV/0!"},{"$error":"#DIV/0!"}]
[null,null,null,null,null,null,{"$f":"COUNTIF(Personen1,\"JA\")","v":0},{"$f":"COUNTIF(H10:H18,\"NEIN\")","v":0},{"$f":"'2.3_Märkte'!G12","v":0},{"$f":"'2.4_Management'!G24","v":0},{"$f":"COUNTIF(K13:K18,\"NEIN\")","v":0},{"$f":"'2.6_Produktion'!G19","v":0},{"$f":"'2.6_Produktion'!G37","v":0},{"$f":"'2.3_Märkte'!G15","v":0},null,{"$f":"'3_Resultat'!A24","v":"Umwelt und Klima"},{"$f":"'3_Resultat'!F24","v":{"$error":"#DIV/0!"}},{"$error":"#DIV/0!"},null,{"$error":"#DIV/0!"},{"$error":"#DIV/0!"}]
[null,null,null,null,null,null,{"$f":"COUNTIF(Personen1,\"NEIN\")","v":0},{"$f":"'2.1_Personen'!G42","v":0},{"$f":"'2.3_Märkte'!G13","v":0},{"$f":"'2.4_Management'!G19","v":0},{"$f":"'2.5_Betriebsumgebung'!G12","v":0},{"$f":"'2.6_Produktion'!G20","v":0},{"$f":"'2.6_Produktion'!G38","v":0},{"$f":"'2.3_Märkte'!G16","v":0},null,{"$f":"'3_Resultat'!A25","v":"Gesundheit und Wohlergehen von Tieren"},{"$f":"'3_Resultat'!F25","v":{"$error":"#DIV/0!"}},{"$error":"#DIV/0!"},null,{"$error":"#DIV/0!"},{"$error":"#DIV/0!"}]
[null,null,null,null,null,null,{"$f":"'2.1_Personen'!G36","v":0},{"$f":"'2.1_Personen'!G43","v":0},{"$f":"'2.3_Märkte'!G5","v":0},{"$f":"'2.4_Management'!G20","v":0},{"$f":"'2.5_Betriebsumgebung'!G13","v":0},{"$f":"'2.6_Produktion'!G21","v":0},{"$f":"'2.6_Produktion'!G39","v":0},{"$f":"'2.3_Märkte'!G17","v":0},null,{"$f":"'3_Resultat'!A26","v":"Nährstoffmanagement "},{"$f":"'3_Resultat'!F26","v":{"$error":"#DIV/0!"}},{"$error":"#DIV/0!"},null,{"$error":"#DIV/0!"},{"$error":"#DIV/0!"}]
[null,null,null,null,null,null,{"$f":"'2.1_Personen'!G37","v":0},{"$f":"'2.1_Personen'!G44","v":0},{"$f":"'2.3_Märkte'!G6","v":0},{"$f":"'2.4_Management'!G21","v":0},{"$f":"'2.5_Betriebsumgebung'!G14","v":0},{"$f":"'2.6_Produktion'!G22","v":0},{"$f":"COUNTIF(M14:M22,\"JA\")","v":0},{"$f":"'2.3_Märkte'!G18","v":0},null,{"$f":"'3_Resultat'!A27","v":"Pflanzenschutz"},{"$f":"'3_Resultat'!F27","v":{"$error":"#DIV/0!"}},{"$error":"#DIV/0!"},null,{"$error":"#DIV/0!"},{"$error":"#DIV/0!"}]
[null,null,null,null,null,null,{"$f":"'2.1_Personen'!G38","v":0},{"$f":"COUNTIF(H21:H23,\"JA\")","v":0},{"$f":"'2.3_Märkte'!G7","v":0},{"$f":"'2.4_Management'!G22","v":0},{"$f":"COUNTIF(K21:K23,\"JA\")","v":0},{"$f":"COUNTIF(L19:L23,\"JA\")","v":0},{"$f":"COUNTIF(M14:M22,\"NEIN\")","v":0},{"$f":"COUNTIF(N20:N23,\"JA\")","v":0},null,{"$f":"'3_Resultat'!A28","v":"Boden-, Wasser- und Biodiversitäts-management"},{"$f":"'3_Resultat'!F28","v":{"$error":"#DIV/0!"}},{"$error":"#DIV/0!"},null,{"$error":"#DIV/0!"},{"$error":"#DIV/0!"}]
[null,null,null,null,null,null,{"$f":"'2.1_Personen'!G39","v":0},{"$f":"COUNTIF(H21:H23,\"NEIN\")","v":0},{"$f":"'2.3_Märkte'!G8","v":0},{"$f":"'2.4_Management'!G23","v":0},{"$f":"COUNTIF(K21:K23,\"NEIN\")","v":0},{"$f":"COUNTIF(L19:L23,\"NEIN\")","v":0},null,{"$f":"COUNTIF(N20:N23,\"NEIN\")","v":0}]
[null,null,null,null,null,null,{"$f":"'2.1_Personen'!G40","v":0},null,{"$f":"'2.3_Märkte'!G9","v":0},{"$f":"COUNTIF(J19:J25,\"JA\")","v":0}]
[null,null,null,null,null,null,{"$f":"COUNTIF(G22:G26,\"JA\")","v":0},null,{"$f":"'2.3_Märkte'!G10","v":0},{"$f":"COUNTIF(J19:J25,\"NEIN\")","v":0}]
[null,null,null,null,null,null,{"$f":"COUNTIF(G22:G26,\"NEIN\")","v":0},null,{"$f":"'2.3_Märkte'!G11","v":0},null,null,null,null,null,null,"Kategorien","Wichtigkeit ","Hilfe",null,"Kategorien"]
[null,null,null,null,null,null,null,null,{"$f":"COUNTIF(I20:I28,\"JA\")","v":0},null,{"$f":"'2.4_Gestion'!G35","v":0},{"$f":"'2.6_Production'!G6","v":0},null,null,null,{"$f":"'3_Évaluation'!A4","v":"Santé et sécurité au travail"},{"$f":"'3_Évaluation'!F4","v":{"$error":"#DIV/0!"}},{"$f":"+Q29-ROW()/1000000","v":{"$error":"#DIV/0!"}},null,{"$f":"+INDEX($P$29:$P$48,MATCH(LARGE($R$29:$R$48,ROW(R1)),$R$29:$R$48,0))","v":{"$error":"#DIV/0!"}},{"$f":"+VLOOKUP(T29,$P$29:$Q$48,2,0)","v":{"$error":"#DIV/0!"}}]
[null,null,null,null,null,null,{"$f":"'2.1_Personnes'!G5","v":0},{"$f":"'2.1_Personnes'!G34","v":0},{"$f":"COUNTIF(I20:I28,\"NEIN\")","v":0},{"$f":"'2.4_Gestion'!G12","v":0},{"$f":"'2.4_Gestion'!G34","v":0},{"$f":"'2.6_Production'!G5","v":0},null,null,null,{"$f":"'3_Évaluation'!A5","v":"Bien-être personnel"},{"$f":"'3_Évaluation'!F5","v":{"$error":"#DIV/0!"}},{"$f":"+Q30-ROW()/1000000","v":{"$error":"#DIV/0!"}},null,{"$f":"+INDEX($P$29:$P$48,MATCH(LARGE($R$29:$R$48,ROW(R2)),$R$29:$R$48,0))","v":{"$error":"#DIV/0!"}},{"$f":"+VLOOKUP(T30,$P$29:$Q$48,2,0)","v":{"$error":"#DIV/0!"}}]
[null,null,null,null,null,null,{"$f":"'2.1_Personnes'!G6","v":0},{"$f":"'2.1_Personnes'!G33","v":0},{"$f":"'2.2_Finances'!G12","v":0},{"$f":"'2.4_Gestion'!G13","v":0},{"$f":"'2.4_Gestion'!G33","v":0},{"$f":"'2.6_Production'!G6","v":0},{"$f":"'2.6_Production'!G24","v":0},null,null,{"$f":"'3_Évaluation'!A6","v":"Employés"},{"$f":"'3_Évaluation'!F6","v":{"$error":"#DIV/0!"}},{"$error":"#DIV/0!"},null,{"$error":"#DIV/0!"},{"$error":"#DIV/0!"}]
[null,null,null,null,null,null,{"$f":"'2.1_Personnes'!G7","v":0},{"$f":"'2.1_Personnes'!G26","v":0},{"$f":"'2.2_Finances'!G13","v":0},{"$f":"'2.4_Gestion'!G5","v":0},{"$f":"'2.4_Gestion'!G27","v":0},{"$f":"'2.6_Production'!G7","v":0},{"$f":"'2.6_Production'!G25","v":0},null,null,{"$f":"'3_Évaluation'!A7","v":"Relations familiales"},{"$f":"'3_Évaluation'!F7","v":{"$error":"#DIV/0!"}},{"$error":"#DIV/0!"},null,{"$error":"#DIV/0!"},{"$error":"#DIV/0!"}]
[null,null,null,null,null,null,{"$f":"'2.1_Personnes'!G8","v":0},{"$f":"'2.1_Personnes'!G27","v":0},{"$f":"'2.2_Finances'!G5","v":0},{"$f":"'2.4_Gestion'!G6","v":0},{"$f":"'2.4_Gestion'!G28","v":0},{"$f":"'2.6_Production'!G8","v":0},{"$f":"'2.6_Production'!G26","v":0},null,null,{"$f":"'3_Évaluation'!A8","v":"Entrepreneur et conseiller"},{"$f":"'3_Évaluation'!F8","v":{"$error":"#DIV/0!"}},{"$error":"#DIV/0!"},null,{"$error":"#DIV/0!"},{"$error":"#DIV/0!"}]
[null,null,null,null,null,null,{"$f":"'2.1_Personnes'!G9","v":0},{"$f":"'2.1_Personnes'!G28","v":0},{"$f":"'2.2_Finances'!G6","v":0},{"$f":"'2.4_Gestion'!G7","v":0},{"$f":"'2.4_Gestion'!G29","v":0},{"$f":"'2.6_Production'!G9","v":0},{"$f":"'2.6_Production'!G27","v":0},null,null,{"$f":"'3_Évaluation'!A10","v":"Gestion de l'argent"},{"$f":"'3_Évaluation'!F10","v":{"$error":"#DIV/0!"}},{"$error":"#DIV/0!"},null,{"$error":"#DIV/0!"},{"$error":"#DIV/0!"}]
[null,null,null,null,null,null,{"$f":"'2.1_Personnes'!G10","v":0},{"$f":"'2.1_Personnes'!G29","v":0},{"$f":"'2.2_Finances'!G7","v":0},{"$f":"'2.4_Gestion'!G8","v":0},{"$f":"'2.4_Gestion'!G30","v":0},{"$f":"'2.6_Production'!G10","v":0},{"$f":"'2.6_Production'!G28","v":0},null,null,{"$f":"'3_Évaluation'!A11","v":"Investissements"},{"$f":"'3_Évaluation'!F11","v":{"$error":"#DIV/0!"}},{"$error":"#DIV/0!"},null,{"$error":"#DIV/0!"},{"$error":"#DIV/0!"}]
[null,null,null,null,null,null,{"$f":"'2.1_Personnes'!G11","v":0},{"$f":"'2.1_Personnes'!G30","v":0},{"$f":"'2.2_Finances'!G8","v":0},{"$f":"'2.4_Gestion'!G9","v":0},{"$f":"'2.4_Gestion'!G31","v":0},{"$f":"COUNTIF(L29:L35,\"OUI\")","v":0},{"$f":"'2.6_Production'!G29","v":0},null,null,"Achats, approvisonnement ",{"$f":"'3_Évaluation'!F13","v":{"$error":"#DIV/0!"}},{"$error":"#DIV/0!"},null,{"$error":"#DIV/0!"},{"$error":"#DIV/0!"}]
[null,null,null,null,null,null,{"$f":"'2.1_Personnes'!G12","v":0},{"$f":"'2.1_Personnes'!G31","v":0},{"$f":"'2.2_Finances'!G9","v":0},{"$f":"'2.4_Gestion'!G10","v":0},{"$f":"'2.4_Gestion'!G32","v":0},{"$f":"COUNTIF(L29:L35,\"NON\")","v":0},{"$f":"'2.6_Production'!G30","v":0},null,null,"Ventes, prix et commerce ",{"$f":"'3_Évaluation'!F14","v":{"$error":"#DIV/0!"}},{"$error":"#DIV/0!"},null,{"$error":"#DIV/0!"},{"$error":"#DIV/0!"}]
[null,null,null,null,null,null,{"$f":"'2.1_Personnes'!G13","v":0},{"$f":"'2.1_Personnes'!G32","v":0},{"$f":"'2.2_Finances'!G10","v":0},{"$f":"'2.4_Gestion'!G11","v":0},{"$f":"COUNTIF(K29:K37,\"OUI\")","v":0},{"$f":"'2.6_Production'!G13","v":0},{"$f":"COUNTIF(M31:M37,\"OUI\")","v":0},null,null,{"$f":"'3_Évaluation'!A16","v":"Stratégie et développement de l'entreprise "},{"$f":"'3_Évaluation'!F16","v":{"$error":"#DIV/0!"}},{"$error":"#DIV/0!"},null,{"$error":"#DIV/0!"},{"$error":"#DIV/0!"}]
[null,null,null,null,null,null,{"$f":"'2.1_Personnes'!G14","v":0},{"$f":"COUNTIF(H30:H38,\"OUI\")","v":0},{"$f":"'2.2_Finances'!G11","v":0},{"$f":"COUNTIF(J30:J38,\"OUI\")","v":0},{"$f":"COUNTIF(K29:K37,\"NON\")","v":0},{"$f":"'2.6_Production'!G14","v":0},{"$f":"COUNTIF(M31:M37,\"NON\")","v":0},null,null,{"$f":"'3_Évaluation'!A17","v":"Innovation"},{"$f":"'3_Évaluation'!F17","v":{"$error":"#DIV/0!"}},{"$error":"#DIV/0!"},null,{"$error":"#DIV/0!"},{"$error":"#DIV/0!"}]
[null,null,null,null,null,null,{"$f":"'2.1_Personnes'!G15","v":0},{"$f":"COUNTIF(H30:H38,\"NON\")","v":0},{"$f":"COUNTIF(I31:I39,\"OUI\")","v":0},{"$f":"COUNTIF(J30:J38,\"NON\")","v":0},{"$f":"'2.5_Environnement commercial'!G10","v":0},{"$f":"'2.6_Production'!G15","v":0},{"$f":"'2.6_Production'!G40","v":0},null,null,{"$f":"'3_Évaluation'!A18","v":"Planification de la transmission"},{"$f":"'3_Évaluation'!F18","v":{"$error":"#DIV/0!"}},{"$error":"#DIV/0!"},null,{"$error":"#DIV/0!"},{"$error":"#DIV/0!"}]
[null,null,null,null,null,null,{"$f":"'2.1_Personnes'!G16","v":0},{"$f":"'2.1_Personnes'!G36","v":0},{"$f":"COUNTIF(I31:I39,\"NON\")","v":0},{"$f":"'2.4_Gestion'!G15","v":0},{"$f":"'2.5_Environnement commercial'!G9","v":0},{"$f":"'2.6_Production'!G16","v":0},{"$f":"'2.6_Production'!G32","v":0},null,null,{"$f":"'3_Évaluation'!A19","v":"Entreprise"},{"$f":"'3_Évaluation'!F19","v":{"$error":"#DIV/0!"}},{"$error":"#DIV/0!"},null,{"$error":"#DIV/0!"},{"$error":"#DIV/0!"}]
[null,null,null,null,null,null,{"$f":"'2.1_Personnes'!G17","v":0},{"$f":"'2.1_Personnes'!G37","v":0},{"$f":"'2.2_Finances'!G18","v":0},{"$f":"'2.4_Gestion'!G16","v":0},{"$f":"'2.5_Environnement commercial'!G5","v":0},{"$f":"COUNTIF(L38:L41,\"OUI\")","v":0},{"$f":"'2.6_Production'!G33","v":0},null,null,{"$f":"'3_Évaluation'!A21","v":"Confiance du public et implication des consommateurs"},{"$f":"'3_Évaluation'!F21","v":{"$error":"#DIV/0!"}},{"$error":"#DIV/0!"},null,{"$error":"#DIV/0!"},{"$error":"#DIV/0!"}]
[null,null,null,null,null,null,{"$f":"'2.1_Personnes'!G18","v":0},{"$f":"'2.1_Personnes'!G38","v":0},{"$f":"'2.2_Finances'!G15","v":0},{"$f":"'2.4_Gestion'!G17","v":0},{"$f":"'2.5_Environnement commercial'!G6","v":0},{"$f":"COUNTIF(L38:L41,\"NON\")","v":0},{"$f":"'2.6_Production'!G34","v":0},null,null,{"$f":"'3_Évaluation'!A22","v":"Politique, politiques et réglementations"},{"$f":"'3_Évaluation'!F22","v":{"$error":"#DIV/0!"}},{"$error":"#DIV/0!"},null,{"$error":"#DIV/0!"},{"$error":"#DIV/0!"}]
[null,null,null,null,null,null,{"$f":"'2.1_Personnes'!G19","v":0},{"$f":"'2.1_Personnes'!G39","v":0},{"$f":"'2.2_Finances'!G16","v":0},{"$f":"COUNTIF(J41:J43,\"OUI\")","v":0},{"$f":"'2.5_Environnement commercial'!G7","v":0},{"$f":"'2.6_Production'!G18","v":0},{"$f":"'2.6_Production'!G35","v":0},null,null,{"$f":"'3_Évaluation'!A24","v":"Environnement et climat"},{"$f":"'3_Évaluation'!F24","v":{"$error":"#DIV/0!"}},{"$error":"#DIV/0!"},null,{"$error":"#DIV/0!"},{"$error":"#DIV/0!"}]
[null,null,null,null,null,null,{"$f":"COUNTIF(G30:G44,\"OUI\")","v":0},{"$f":"'2.1_Personnes'!G40","v":0},{"$f":"'2.2_Finances'!G17","v":0},{"$f":"COUNTIF(J41:J43,\"NON\")","v":0},{"$f":"'2.5_Environnement commercial'!G8","v":0},{"$f":"'2.6_Production'!G19","v":0},{"$f":"'2.6_Production'!G36","v":0},null,null,{"$f":"'3_Évaluation'!A25","v":"Santé et bien-être des animaux"},{"$f":"'3_Évaluation'!F25","v":{"$error":"#DIV/0!"}},{"$error":"#DIV/0!"},null,{"$error":"#DIV/0!"},{"$error":"#DIV/0!"}]
[null,null,null,null,null,null,{"$f":"COUNTIF(G30:G44,\"NON\")","v":0},{"$f":"COUNTIF(H41:H45,\"OUI\")","v":0},{"$f":"COUNTIF(I42:I45,\"OUI\")","v":0},{"$f":"'2.4_Gestion'!G25","v":0},{"$f":"COUNTIF(K40:K45,\"OUI\")","v":0},{"$f":"'2.6_Production'!G20","v":0},{"$f":"'2.6_Production'!G37","v":0},null,null,{"$f":"'3_Évaluation'!A26","v":"Gestion des nutriments "},{"$f":"'3_Évaluation'!F26","v":{"$error":"#DIV/0!"}},{"$error":"#DIV/0!"},null,{"$error":"#DIV/0!"},{"$error":"#DIV/0!"}]
[null,null,null,null,null,null,{"$f":"'2.1_Personnes'!G24","v":0},{"$f":"COUNTIF(H41:H45,\"NON\")","v":0},{"$f":"COUNTIF(I42:I45,\"NON\")","v":0},{"$f":"'2.4_Gestion'!G24","v":0},{"$f":"COUNTIF(K40:K45,\"NON\")","v":0},{"$f":"'2.6_Production'!G21","v":0},{"$f":"'2.6_Production'!G38","v":0},null,null,{"$f":"'3_Évaluation'!A27","v":"Protection des plantes"},{"$f":"'3_Évaluation'!F27","v":{"$error":"#DIV/0!"}},{"$error":"#DIV/0!"},null,{"$error":"#DIV/0!"},{"$error":"#DIV/0!"}]
[null,null,null,null,null,null,{"$f":"'2.1_Personnes'!G21","v":0},{"$f":"'2.1_Personnes'!G42","v":0},{"$f":"'2.3_Marchés'!G12","v":0},{"$f":"'2.4_Gestion'!G19","v":0},{"$f":"'2.5_Environnement commercial'!G12","v":0},{"$f":"'2.6_Production'!G22","v":0},{"$f":"'2.6_Production'!G39","v":0},null,null,{"$f":"'3_Évaluation'!A28","v":"Gestion des sols, de l'eau et de la biodiversité"},{"$f":"'3_Évaluation'!F28","v":{"$error":"#DIV/0!"}},{"$error":"#DIV/0!"},null,{"$error":"#DIV/0!"},{"$error":"#DIV/0!"}]
[null,null,null,null,null,null,{"$f":"'2.1_Personnes'!G22","v":0},{"$f":"'2.1_Personnes'!G43","v":0},{"$f":"'2.3_Marchés'!G13","v":0},{"$f":"'2.4_Gestion'!G20","v":0},{"$f":"'2.5_Environnement commercial'!G13","v":0},{"$f":"COUNTIF(L44:L48,\"OUI\")","v":0},{"$f":"COUNTIF(M40:M48,\"OUI\")","v":0}]
[null,null,null,null,null,null,{"$f":"'2.1_Personnes'!G23","v":0},{"$f":"'2.1_Personnes'!G44","v":0},{"$f":"'2.3_Marchés'!G5","v":0},{"$f":"'2.4_Gestion'!G21","v":0},{"$f":"'2.5_Environnement commercial'!G14","v":0},{"$f":"COUNTIF(L44:L48,\"NON\")","v":0},{"$f":"COUNTIF(M40:M48,\"NON\")","v":0}]
[null,null,null,null,null,null,{"$f":"COUNTIF(G47:G50,\"OUI\")","v":0},{"$f":"COUNTIF(H48:H50,\"OUI\")","v":0},{"$f":"'2.3_Marchés'!G6","v":0},{"$f":"'2.4_Gestion'!G22","v":0},{"$f":"COUNTIF(K48:K50,\"OUI\")","v":0}]
[null,null,null,null,null,null,{"$f":"COUNTIF(G47:G50,\"NON\")","v":0},{"$f":"COUNTIF(H48:H50,\"NON\")","v":0},{"$f":"'2.3_Marchés'!G7","v":0},{"$f":"'2.4_Gestion'!G23","v":0},{"$f":"COUNTIF(K48:K50,\"NON\")","v":0}]
[null,null,null,null,null,null,null,null,{"$f":"'2.3_Marchés'!G8","v":0},{"$f":"COUNTIF(J46:J52,\"OUI\")","v":0},null,null,{"$f":"'2.3_Marchés'!G15","v":0}]
[null,null,null,null,null,null,null,null,{"$f":"'2.3_Marchés'!G9","v":0},{"$f":"COUNTIF(J46:J52,\"NON\")","v":0},null,null,{"$f":"'2.3_Marchés'!G16","v":0}]
[null,null,null,null,null,null,null,null,{"$f":"'2.3_Marchés'!G10","v":0},null,null,null,{"$f":"'2.3_Marchés'!G17","v":0}]
[null,null,null,null,null,null,null,null,{"$f":"'2.3_Marchés'!G11","v":0},null,null,null,{"$f":"'2.3_Marchés'!G18","v":0}]
[null,null,null,null,null,null,null,null,{"$f":"COUNTIF(I48:I56,\"OUI\")","v":0},null,null,null,{"$f":"COUNTIF(M53:M56,\"OUI\")","v":0}]
[null,null,null,null,null,null,null,null,{"$f":"COUNTIF(I48:I56,\"NON\")","v":0},null,null,null,{"$f":"COUNTIF(M53:M56,\"NON\")","v":0}]